Document Date,Purchase Order No,Line Item No,Supplier ID,Supplier Name,Pro Class,Pro Class Description,Description of Goods (Purpose of expenditure look up),Service/Department   (SAP Hierarchy Position),Expense Area (cost centre desc),Net Order Value Over 5000.00 (line item value shown here),GL Code,Cost Centre/WBS
07/10/2021,ZAV697884,1,1162,RM Education plc,270000,Information Communication Technology  ,Information and Communications Technology,Corporate and Support Services,IT AVA Non - SLA,"34,871.90",402001,13001
07/10/2021,ZAV697884,2,1162,RM Education plc,270000,Information Communication Technology  ,Information and Communications Technology,Corporate and Support Services,IT AVA Non - SLA,7.00,402001,13001
01/10/2021,ZES697576,1,6194,ESTEEM SYSTEMS LTD,181800,Environmental Services Technical Equipment ,Furniture and Equipment,Corporate and Support Services,IT Traded (SHG),"1,644.04",400110,12106
01/10/2021,ZES697576,2,6194,ESTEEM SYSTEMS LTD,181800,Environmental Services Technical Equipment ,Furniture and Equipment,Corporate and Support Services,IT Traded (SHG),"3,930.95",400110,12106
01/10/2021,ZES697576,3,6194,ESTEEM SYSTEMS LTD,181800,Environmental Services Technical Equipment ,Furniture and Equipment,Corporate and Support Services,IT Traded (SHG),349.51,400110,12106
01/10/2021,ZES697576,4,6194,ESTEEM SYSTEMS LTD,181800,Environmental Services Technical Equipment ,Furniture and Equipment,Corporate and Support Services,IT Traded (SHG),260.87,400110,12106
01/10/2021,ZES697576,5,6194,ESTEEM SYSTEMS LTD,181800,Environmental Services Technical Equipment ,Furniture and Equipment,Corporate and Support Services,IT Traded (SHG),"3,846.06",400110,12106
07/10/2021,ZES697916,1,544,Phoenix Software Ltd,270000,Information Communication Technology  ,Information and Communications Technology,Corporate and Support Services,IT Microsoft,"4,869.00",402001,13091
07/10/2021,ZES697916,2,544,Phoenix Software Ltd,270000,Information Communication Technology  ,Information and Communications Technology,Corporate and Support Services,IT Microsoft,"7,323.00",402001,13091
13/10/2021,ZES698124,1,2398,Fibrelite (Northwest) Ltd,270000,Information Communication Technology  ,Information and Communications Technology,#N/A,#N/A,"8,325.00",402006,C.11502.113
28/10/2021,ZES698711,1,5814,Prosperon Networks Ltd,260000,Human Resources  ,Staff Training,Corporate and Support Services,IT Main,"7,590.00",102020,11073
03/11/2021,ZES698967,1,2718,Virgin Media Business,270000,Information Communication Technology  ,Information and Communications Technology,Corporate and Support Services,IT Infrastructure,"96,121.67",402064,11324
19/11/2021,ZES699611,1,544,Phoenix Software Ltd,270000,Information Communication Technology  ,Information and Communications Technology,Corporate and Support Services,IT Microsoft,"4,869.00",402001,13091
19/11/2021,ZES699611,2,544,Phoenix Software Ltd,270000,Information Communication Technology  ,Information and Communications Technology,Corporate and Support Services,IT Microsoft,"8,034.00",402001,13091
15/12/2021,ZES700737,1,544,Phoenix Software Ltd,270000,Information Communication Technology  ,Information and Communications Technology,Corporate and Support Services,IT Microsoft,"4,869.00",402001,13091
15/12/2021,ZES700737,2,544,Phoenix Software Ltd,270000,Information Communication Technology  ,Information and Communications Technology,Corporate and Support Services,IT Microsoft,"8,034.00",402001,13091
24/12/2021,ZES701144,1,14487,Bytes Software Services Ltd,270000,Information Communication Technology  ,Information and Communications Technology,Corporate and Support Services,IT Infrastructure,"1,474.77",402002,11324
24/12/2021,ZES701144,2,14487,Bytes Software Services Ltd,270000,Information Communication Technology  ,Information and Communications Technology,Corporate and Support Services,IT Infrastructure,"1,515.06",402002,11324
24/12/2021,ZES701144,3,14487,Bytes Software Services Ltd,270000,Information Communication Technology  ,Information and Communications Technology,Corporate and Support Services,IT Infrastructure,"3,058.79",402002,11324
24/12/2021,ZES701144,4,14487,Bytes Software Services Ltd,270000,Information Communication Technology  ,Information and Communications Technology,Corporate and Support Services,IT Infrastructure,"6,008.33",402002,11324
24/12/2021,ZES701144,5,14487,Bytes Software Services Ltd,270000,Information Communication Technology  ,Information and Communications Technology,Corporate and Support Services,IT Infrastructure,976.55,402002,11324
24/12/2021,ZES701145,1,14487,Bytes Software Services Ltd,270000,Information Communication Technology  ,Information and Communications Technology,Corporate and Support Services,IT Infrastructure,"47,567.28",402002,11324
24/12/2021,ZES701145,2,14487,Bytes Software Services Ltd,270000,Information Communication Technology  ,Information and Communications Technology,Corporate and Support Services,IT Infrastructure,"11,142.72",402002,11324
24/12/2021,ZES701145,3,14487,Bytes Software Services Ltd,270000,Information Communication Technology  ,Information and Communications Technology,Corporate and Support Services,IT Infrastructure,"5,945.91",402002,11324
24/12/2021,ZES701145,4,14487,Bytes Software Services Ltd,270000,Information Communication Technology  ,Information and Communications Technology,Corporate and Support Services,IT Infrastructure,"1,392.84",402002,11324
24/12/2021,ZES701145,5,14487,Bytes Software Services Ltd,270000,Information Communication Technology  ,Information and Communications Technology,Corporate and Support Services,IT Infrastructure,"19,026.91",402002,11324
24/12/2021,ZES701145,6,14487,Bytes Software Services Ltd,270000,Information Communication Technology  ,Information and Communications Technology,Corporate and Support Services,IT Infrastructure,"8,914.18",402002,11324
24/12/2021,ZES701145,7,14487,Bytes Software Services Ltd,270000,Information Communication Technology  ,Information and Communications Technology,Corporate and Support Services,IT Infrastructure,"10,489.38",402002,11324
24/12/2021,ZES701145,8,14487,Bytes Software Services Ltd,270000,Information Communication Technology  ,Information and Communications Technology,Corporate and Support Services,IT Infrastructure,713.51,402002,11324
29/11/2021,ZFC699989,1,930,PHS Group Plc,#N/A,#N/A,#N/A,Services to Place,SPB Operational Est.,"13,204.75",400999,11662
23/11/2021,ZHS699763,1,14859,Construction Documentation Nor,390000,"Works - Construction, Repair & Maintenance  ",Capital Expenditure - Works,#N/A,#N/A,"5,500.00",200311,C.11654.076
26/11/2021,ZHS699951,1,9992,Reheat (Renewable Technologies,999999,Fees and Charges,Fees and Charges,#N/A,#N/A,"6,092.82",401035,C.11644.015
12/10/2021,ZSB698109,1,564,Metro Taxis Ltd,381600,Vehicle Management Hire/Leasing ,Leasing /Transport Hire,Services to People,Highfields PRU,"7,698.65",300302,10329
20/12/2021,ZSB700982,1,1196,SMC Premier Cleaning ltd,130000,Cleaning & Janitorial  ,Cleaning,Services to People,Highfields PRU,"1,780.02",201601,10329
20/12/2021,ZSB700982,2,1196,SMC Premier Cleaning ltd,130000,Cleaning & Janitorial  ,Cleaning,Services to People,Highfields PRU,"1,673.10",201601,10329
20/12/2021,ZSB700982,3,1196,SMC Premier Cleaning ltd,130000,Cleaning & Janitorial  ,Cleaning,Services to People,Highfields PRU,"1,744.38",201601,10329
04/10/2021,ZZC697646,1,12960,PAULETTE FORBES,260000,Human Resources  ,Staff Training,Services to People,RAA Adoption Count,"5,000.00",102020,12957
04/10/2021,ZZC697647,1,12675,Tiptoes Child Therapy Services,999999,Fees and Charges,Fees and Charges,Services to People,RAA - ASF Grant,"5,000.00",401035,12968
07/10/2021,ZZC697865,1,5555,MANCHESTER DEAF CENTRE LTD,261100,Human Resources Interpretation & Translation ,Professional Fees,Services to People,Incl - S.I.U - Perip,"6,221.24",401023,10307
07/10/2021,ZZC697905,1,12675,Tiptoes Child Therapy Services,999999,Fees and Charges,Fees and Charges,Services to People,RAA - ASF Grant,"5,000.00",401035,12968
07/10/2021,ZZC697906,1,12298,One Education Ltd,999999,Fees and Charges,Fees and Charges,Services to People,RAA - ASF Grant,"5,000.00",401035,12968
19/10/2021,ZZC698315,1,14063,TSOM Group,261500,Human Resources Training & Conferences ,Fees and Charges,Services to People,SHV CSC Locality Lea,"6,660.00",401024,11514
25/10/2021,ZZC698560,1,2104,Central Manchester University,150000,Consultancy   ,Professional Fees,Services to People,RAA - Ctr Excellence,"48,941.00",401020,12967
26/10/2021,ZZC698640,1,12298,One Education Ltd,999999,Fees and Charges,Fees and Charges,Services to People,RAA - ASF Grant,"10,860.00",401035,12968
01/11/2021,ZZC698840,1,12298,One Education Ltd,999999,Fees and Charges,Fees and Charges,Services to People,RAA - ASF Grant,"6,350.00",401035,12968
01/11/2021,ZZC698859,1,14063,TSOM Group,150000,Consultancy   ,Professional Fees,Services to People,W&B Client spend,"5,400.00",401020,13141
03/11/2021,ZZC698956,1,14867,SpeedAdmin ApS,390000,"Works - Construction, Repair & Maintenance  ",Fees and Charges,Services to People,SI - Music Service,"5,000.00",401017,10417
05/11/2021,ZZC699102,1,14164,Attachment Works,999999,Fees and Charges,Fees and Charges,Services to People,RAA - ASF Grant,"7,493.00",401035,12968
16/11/2021,ZZC699467,1,5423,WILTSHIRE COUNTY COUNCIL,320000,Social Community Care Supplies & Services  ,Care Payments,Services to People,RAA Adoption Count,"27,000.00",530306,12957
23/11/2021,ZZC699770,1,11417,Parents and Children Together,320000,Social Community Care Supplies & Services  ,Care Payments,Services to People,RAA Adoption Count,"35,552.00",530306,12957
23/11/2021,ZZC699771,1,12106,KMS Media,190000,Facilities & Management Services  ,Office Expenses,Services to People,RAA Adoption Count,"5,229.00",400700,12957
30/11/2021,ZZC700099,1,14892,St Francis' Childrens Society,320000,Social Community Care Supplies & Services  ,Care Payments,Services to People,RAA Adoption Count,"52,128.00",530306,12957
01/12/2021,ZZC700119,1,12675,Tiptoes Child Therapy Services,999999,Fees and Charges,Fees and Charges,Services to People,RAA - ASF Grant,"8,190.00",401035,12968
06/12/2021,ZZC700299,1,14913,Vale of Glamorgan Council,320000,Social Community Care Supplies & Services  ,Care Payments,Services to People,RAA Adoption Count,"27,000.00",530306,12957
10/12/2021,ZZC700507,1,12298,One Education Ltd,999999,Fees and Charges,Fees and Charges,Services to People,RAA - ASF Grant,"9,360.00",401035,12968
13/12/2021,ZZC700563,1,5555,MANCHESTER DEAF CENTRE LTD,261100,Human Resources Interpretation & Translation ,Professional Fees,Services to People,Incl - S.I.U - Perip,"7,156.90",401023,10307
20/12/2021,ZZC700913,1,12298,One Education Ltd,999999,Fees and Charges,Fees and Charges,Services to People,RAA - ASF Grant,"6,450.00",401035,12968
01/10/2021,ZZH697582,1,7820,GMCA - GMUTC,150000,Consultancy   ,Professional Fees,Corporate and Support Services,Info & Governance,"5,206.00",401020,11146
01/10/2021,ZZH697598,1,14414,MEADOWS CARE LTD,261500,Human Resources Training & Conferences ,Fees and Charges,Services to People,SEN Independent Sch,"26,000.00",401024,10372
01/10/2021,ZZH697599,1,14414,MEADOWS CARE LTD,261500,Human Resources Training & Conferences ,Fees and Charges,Services to People,SEN Independent Sch,"26,000.00",401024,10372
01/10/2021,ZZH697601,1,1722,The Together Trust Centre,261500,Human Resources Training & Conferences ,Fees and Charges,Services to People,SEN Independent Sch,"30,244.44",401024,10372
01/10/2021,ZZH697602,1,1799,Stockport Homes,#N/A,#N/A,#N/A,Services to People,COVID Winter Grant,"10,262.00",500999,13096
01/10/2021,ZZH697604,1,14822,Saint Thomas More R.C. Primary,170000,Education  ,Third party payments - Public Sector,Services to People,OLA pupils,"7,445.25",500304,10371
01/10/2021,ZZH697606,1,12193,Greater Manchester Combined Au,390000,"Works - Construction, Repair & Maintenance  ",Capital Expenditure - Works,#N/A,#N/A,"6,765.19",200304,C.00710.203
01/10/2021,ZZH697621,1,7280,Works 4U Support Services Ltd,261500,Human Resources Training & Conferences ,Fees and Charges,Services to People,SEN Specific support,"24,960.00",401024,10300
01/10/2021,ZZH697622,1,7280,Works 4U Support Services Ltd,261500,Human Resources Training & Conferences ,Fees and Charges,Services to People,SEN Specific support,"24,960.00",401024,10300
04/10/2021,ZZH697635,1,12193,Greater Manchester Combined Au,390000,"Works - Construction, Repair & Maintenance  ",Capital Expenditure - Works,#N/A,#N/A,"6,104.51",200304,C.00710.203
04/10/2021,ZZH697636,1,8549,Lucy Zodion Ltd,390000,"Works - Construction, Repair & Maintenance  ",Capital Expenditure - Works,#N/A,#N/A,"15,625.00",200304,C.01197.203
05/10/2021,ZZH697677,1,6748,GEORGE COX & SONS LTD,390000,Supplies and services,Supplies and services,#N/A,#N/A,"285,344.56",401600,C.01321.203
05/10/2021,ZZH697678,1,3529,Totally Local Company Ltd,391114,"Works - Construction, Repair & Maintenance Buildings Surveys",Capital Expenditure - Fees,#N/A,#N/A,"361,447.13",200316,C.11508.007
05/10/2021,ZZH697684,1,10858,Acorn Recovery Projects,261500,Human Resources Training & Conferences ,Fees and Charges,Services to Place,Contin Educ Service,"36,975.48",401024,10511
05/10/2021,ZZH697691,1,9715,NHS Stockport CCG,999999,Fees and Charges,Fees and Charges,Services to People,PH-Sexual Health,"9,000.00",402404,12736
05/10/2021,ZZH697701,1,6967,Wilde Consultants Ltd,150000,Consultancy   ,Professional Fees,Corporate and Support Services,Spatial Intelligence,"7,425.00",401007,11973
05/10/2021,ZZH697711,1,3707,Salford City Council/Finance,999999,Social Community Care Supplies & Services  ,Service Contract Payments,Services to People,PH-Sexual Health,"22,500.00",561704,12736
05/10/2021,ZZH697717,1,12902,ECS Consultants Limited,390000,"Works - Construction, Repair & Maintenance  ",Repairs and Maintenance,#N/A,#N/A,"11,235.00",200123,C.10393.110
05/10/2021,ZZH697718,1,12902,ECS Consultants Limited,390000,"Works - Construction, Repair & Maintenance  ",Repairs and Maintenance,#N/A,#N/A,"12,290.00",200123,C.10373.116
05/10/2021,ZZH697718,1,12902,ECS Consultants Limited,390000,"Works - Construction, Repair & Maintenance  ",Repairs and Maintenance,#N/A,#N/A,"12,290.00",200123,C.10373.237
05/10/2021,ZZH697719,1,12902,ECS Consultants Limited,390000,"Works - Construction, Repair & Maintenance  ",Repairs and Maintenance,#N/A,#N/A,0.00,200123,C.10307.107
05/10/2021,ZZH697719,1,12902,ECS Consultants Limited,390000,"Works - Construction, Repair & Maintenance  ",Repairs and Maintenance,#N/A,#N/A,"10,270.00",200123,C.10307.107
05/10/2021,ZZH697720,1,12902,ECS Consultants Limited,390000,"Works - Construction, Repair & Maintenance  ",Repairs and Maintenance,#N/A,#N/A,"13,905.00",200123,C.10304.110
05/10/2021,ZZH697720,1,12902,ECS Consultants Limited,390000,"Works - Construction, Repair & Maintenance  ",Repairs and Maintenance,#N/A,#N/A,"13,905.00",200123,C.10304.237
05/10/2021,ZZH697721,1,12902,ECS Consultants Limited,390000,"Works - Construction, Repair & Maintenance  ",Repairs and Maintenance,#N/A,#N/A,"11,850.00",200123,C.10293.110
05/10/2021,ZZH697721,1,12902,ECS Consultants Limited,390000,"Works - Construction, Repair & Maintenance  ",Repairs and Maintenance,#N/A,#N/A,"11,850.00",200123,C.10293.237
05/10/2021,ZZH697742,1,1799,Stockport Homes,#N/A,#N/A,#N/A,Services to People,COVID Winter Grant,"32,200.00",500999,13096
05/10/2021,ZZH697758,1,13233,MetDesk Limited,390000,"Works - Construction, Repair & Maintenance  ",Repairs and Maintenance,Services to Place,Gritting,"6,237.00",200123,12033
06/10/2021,ZZH697781,1,6803,Bibliotheca Ltd,390000,"Works - Construction, Repair & Maintenance  ",Repairs and Maintenance,Corporate and Support Services,Public Libraries Gen,"15,825.29",200123,11329
06/10/2021,ZZH697782,1,5915,Atkins Global Limited,150000,Consultancy   ,Professional Fees,Services to Place,Transport Strategy,"7,498.00",401007,13060
06/10/2021,ZZH697783,1,6803,Bibliotheca Ltd,390000,"Works - Construction, Repair & Maintenance  ",Repairs and Maintenance,Corporate and Support Services,Public Libraries Gen,"15,974.54",200123,11329
06/10/2021,ZZH697784,1,6803,Bibliotheca Ltd,390000,"Works - Construction, Repair & Maintenance  ",Repairs and Maintenance,Corporate and Support Services,Public Libraries Gen,"13,741.66",200123,11329
06/10/2021,ZZH697785,1,13495,Pell Frischmann Consultants Lt,390000,Supplies and services,Supplies and services,#N/A,#N/A,"54,278.00",401600,C.01467.201
06/10/2021,ZZH697787,1,8106,Tarmac Trading Ltd,390000,Supplies and services,Supplies and services,#N/A,#N/A,"9,875.94",401600,C.01368.201
06/10/2021,ZZH697790,1,5214,WSP GROUP PLC,150000,Consultancy   ,Professional Fees,#N/A,#N/A,"98,787.50",401007,C.01468.201
06/10/2021,ZZH697791,1,11056,Asset Management Academy Ltd,260000,Human Resources  ,Staff Training,Services to Place,Network Assets Staff,"6,927.33",102020,11959
06/10/2021,ZZH697791,2,11056,Asset Management Academy Ltd,260000,Human Resources  ,Staff Training,Services to Place,Network Assets Staff,"8,659.05",102020,11959
06/10/2021,ZZH697791,3,11056,Asset Management Academy Ltd,260000,Human Resources  ,Staff Training,Services to Place,Policy-Rights Of Way,"1,731.81",102020,10088
06/10/2021,ZZH697791,4,11056,Asset Management Academy Ltd,260000,Human Resources  ,Staff Training,Services to Place,Transport Strategy,"1,731.81",102020,13060
06/10/2021,ZZH697792,1,5214,WSP GROUP PLC,150000,Consultancy   ,Professional Fees,#N/A,#N/A,"17,825.00",401007,C.01313.201
06/10/2021,ZZH697809,1,216,Manchester City Council,999999,Third party payments - Public Sector,Third party payments - Public Sector,Services to People,PH-GUM Services,"187,980.00",500303,12745
06/10/2021,ZZH697811,1,3529,Totally Local Company Ltd,390000,Supplies and services,Supplies and services,#N/A,#N/A,"9,713.82",401600,C.01369.203
06/10/2021,ZZH697830,1,1339,Stockport NHS Foundation Trust,290000,Arts & Leisure Services  ,Publicity and Promotion,Services to People,SEN Specific support,"14,400.00",401801,10300
06/10/2021,ZZH697831,1,1339,Stockport NHS Foundation Trust,290000,Arts & Leisure Services  ,Publicity and Promotion,Services to People,SEN Specific support,"21,583.00",401801,10300
06/10/2021,ZZH697833,1,6748,GEORGE COX & SONS LTD,390000,Supplies and services,Supplies and services,#N/A,#N/A,"8,029.11",401600,C.01441.203
06/10/2021,ZZH697834,1,6748,GEORGE COX & SONS LTD,390000,Supplies and services,Supplies and services,#N/A,#N/A,"6,647.91",401600,C.01442.203
06/10/2021,ZZH697849,1,1669,Charnwood Nursery,999999,UNCLASSIFIED  ,MISCLASSIFIED? CHECK BEFORE PUBLICATION,Services to People,Start Well Ops Staff,"10,483.00",100100,12880
06/10/2021,ZZH697851,1,10926,Inform CPI Ltd,150000,Consultancy   ,Professional Fees,Corporate and Support Services,Bentax,"7,500.00",401020,11139
07/10/2021,ZZH697875,1,13990,ANS global,240000,Horticultural  ,Grounds Maintenance,Services to Place,Redrock IE,"8,796.18",202030,12062
07/10/2021,ZZH697876,1,6748,GEORGE COX & SONS LTD,390000,"Works - Construction, Repair & Maintenance  ",Capital Expenditure - Works,#N/A,#N/A,"55,783.55",200304,C.11502.122
07/10/2021,ZZH697878,1,10926,Inform CPI Ltd,150000,Consultancy   ,Professional Fees,Corporate and Support Services,Bentax,"5,000.00",401020,11139
07/10/2021,ZZH697887,1,8241,Zellis,270000,Information Communication Technology  ,Information and Communications Technology,Corporate and Support Services,POD Core Staffing,"16,621.20",402001,12590
07/10/2021,ZZH697889,1,1820,Aquinas College,320000,Social Community Care Supplies & Services  ,Third party payments - Private/Voluntary Sector,Services to People,Top-up Fund Post 16,"110,549.33",402403,12724
07/10/2021,ZZH697891,1,4316,Reaseheath College,320000,Social Community Care Supplies & Services  ,Third party payments - Private/Voluntary Sector,Services to People,Top-up Fund Post 16,"9,363.00",402403,12724
07/10/2021,ZZH697896,1,5915,Atkins Global Limited,150000,Consultancy   ,Professional Fees,Services to Place,Feasibility,"26,278.56",401007,13062
07/10/2021,ZZH697897,1,5915,Atkins Global Limited,150000,Consultancy   ,Professional Fees,Services to Place,Feasibility,"29,504.64",401007,13062
07/10/2021,ZZH697898,1,5915,Atkins Global Limited,150000,Consultancy   ,Professional Fees,Services to Place,Feasibility,"43,342.56",401007,13062
07/10/2021,ZZH697899,1,5915,Atkins Global Limited,150000,Consultancy   ,Professional Fees,Services to Place,Feasibility,"43,342.56",401007,13062
07/10/2021,ZZH697900,1,5915,Atkins Global Limited,150000,Consultancy   ,Professional Fees,Services to Place,Feasibility,"43,342.56",401007,13062
07/10/2021,ZZH697901,1,5915,Atkins Global Limited,150000,Consultancy   ,Professional Fees,Services to Place,Feasibility,"38,396.16",401007,13062
07/10/2021,ZZH697902,1,5915,Atkins Global Limited,150000,Consultancy   ,Professional Fees,Services to Place,Feasibility,"43,342.56",401007,13062
07/10/2021,ZZH697913,1,8233,MGB Plastics Ltd,182020,Environmental Services Waste Management,Waste Management Equipment,Services to Place,Wheelie Bins,"14,304.00",400401,10864
07/10/2021,ZZH697914,1,3529,Totally Local Company Ltd,240000,Horticultural  ,Grounds Maintenance,#N/A,#N/A,"54,000.00",202031,C.10775
07/10/2021,ZZH697917,1,11058,Stockport Town Centre Business,390000,Supplies and services,Supplies and services,Services to Place,Invest in Growth,"10,000.00",401600,10091
08/10/2021,ZZH697949,1,1339,Stockport NHS Foundation Trust,999999,UNCLASSIFIED  ,MISCLASSIFIED? CHECK BEFORE PUBLICATION,Services to People,HTV SFW School Aged,"11,656.16",100100,12876
08/10/2021,ZZH697957,1,12608,Liquidlogic Limited,150000,Consultancy   ,Professional Fees,Corporate and Support Services,I.T Business Relat,679.45,401007,13044
08/10/2021,ZZH697957,2,12608,Liquidlogic Limited,150000,Consultancy   ,Professional Fees,Corporate and Support Services,I.T Business Relat,"17,400.00",401007,13044
08/10/2021,ZZH697975,1,13124,Social Finance Limited,150000,Consultancy   ,Professional Fees,Corporate and Support Services,Business Intelligenc,"9,275.00",401007,11872
11/10/2021,ZZH697992,1,3529,Totally Local Company Ltd,390000,Supplies and services,Supplies and services,#N/A,#N/A,"185,744.79",401600,C.01369.203
11/10/2021,ZZH698022,1,3529,Totally Local Company Ltd,391114,"Works - Construction, Repair & Maintenance Buildings Surveys",Capital Expenditure - Fees,#N/A,#N/A,"72,379.95",200316,C.11508.007
12/10/2021,ZZH698040,1,9935,Athletics Direct,240000,Horticultural  ,Grounds Maintenance,Services to Place,SPB - Investment Est,"32,500.00",202029,10062
12/10/2021,ZZH698041,1,12578,Child Safety Media,290000,Arts & Leisure Services  ,Publicity and Promotion,Services to People,GMCA CS Grant,"5,145.00",401801,11505
12/10/2021,ZZH698043,1,7025,CBRE Limited,150000,Consultancy   ,Professional Fees,Services to Place,CIC,"5,000.00",401007,13106
12/10/2021,ZZH698050,1,9220,NGA NATIONAL GOVERNORS ASSOCIA,200000,Financial Services  ,Fees and Charges,Services to People,SI - School Govern,"8,722.00",402401,10755
12/10/2021,ZZH698055,1,14057,Atelier Rehab Ltd,181800,Environmental Services Technical Equipment ,Furniture and Equipment,Services to People,SEN Equipment,"1,762.00",400110,10324
12/10/2021,ZZH698055,2,14057,Atelier Rehab Ltd,181800,Environmental Services Technical Equipment ,Furniture and Equipment,Services to People,SEN Equipment,143.00,400110,10324
12/10/2021,ZZH698055,3,14057,Atelier Rehab Ltd,181800,Environmental Services Technical Equipment ,Furniture and Equipment,Services to People,SEN Equipment,985.00,400110,10324
12/10/2021,ZZH698055,4,14057,Atelier Rehab Ltd,181800,Environmental Services Technical Equipment ,Furniture and Equipment,Services to People,SEN Equipment,"1,142.00",400110,10324
12/10/2021,ZZH698055,5,14057,Atelier Rehab Ltd,181800,Environmental Services Technical Equipment ,Furniture and Equipment,Services to People,SEN Equipment,260.00,400110,10324
12/10/2021,ZZH698055,6,14057,Atelier Rehab Ltd,181800,Environmental Services Technical Equipment ,Furniture and Equipment,Services to People,SEN Equipment,656.00,400110,10324
12/10/2021,ZZH698055,7,14057,Atelier Rehab Ltd,181800,Environmental Services Technical Equipment ,Furniture and Equipment,Services to People,SEN Equipment,36.00,400110,10324
12/10/2021,ZZH698055,8,14057,Atelier Rehab Ltd,181800,Environmental Services Technical Equipment ,Furniture and Equipment,Services to People,SEN Equipment,110.00,400110,10324
12/10/2021,ZZH698055,9,14057,Atelier Rehab Ltd,181800,Environmental Services Technical Equipment ,Furniture and Equipment,Services to People,SEN Equipment,566.00,400110,10324
12/10/2021,ZZH698055,10,14057,Atelier Rehab Ltd,181800,Environmental Services Technical Equipment ,Furniture and Equipment,Services to People,SEN Equipment,44.00,400110,10324
12/10/2021,ZZH698055,11,14057,Atelier Rehab Ltd,181800,Environmental Services Technical Equipment ,Furniture and Equipment,Services to People,SEN Equipment,54.00,400110,10324
12/10/2021,ZZH698055,12,14057,Atelier Rehab Ltd,181800,Environmental Services Technical Equipment ,Furniture and Equipment,Services to People,SEN Equipment,293.00,400110,10324
12/10/2021,ZZH698055,13,14057,Atelier Rehab Ltd,181800,Environmental Services Technical Equipment ,Furniture and Equipment,Services to People,SEN Equipment,122.00,400110,10324
12/10/2021,ZZH698065,1,1177,Copyright Licensing Agency,150000,Consultancy   ,Professional Fees,Corporate and Support Services,Legal Fees Budget,"14,738.35",401020,12271
12/10/2021,ZZH698067,1,13860,Howard Lynn Property Ltd,261400,Human Resources Temporary & Agency Staff ,Agency Staff,Services to Place,Property Client Acct,"6,941.21",100290,12328
12/10/2021,ZZH698068,1,13223,A Pacini Ltd,261400,Human Resources Temporary & Agency Staff ,Agency Staff,Services to Place,Property Client Acct,"7,196.98",100290,12328
12/10/2021,ZZH698073,1,6748,GEORGE COX & SONS LTD,390000,Supplies and services,Supplies and services,#N/A,#N/A,"9,258.30",401600,C.01430.203
12/10/2021,ZZH698082,1,14317,Ridge and Partners LLP,150000,Consultancy   ,Professional Fees,Services to People,FP - Adoption,"21,200.00",401007,11440
12/10/2021,ZZH698083,1,3290,Royal Mail,300000,Mail Services�  ,Office Expenses,Corporate and Support Services,Mailroom Service,"15,000.00",400711,11152
12/10/2021,ZZH698084,1,10841,Whistl UK Limited,300000,Mail Services�  ,Office Expenses,Corporate and Support Services,Mailroom Service,"45,000.00",400711,11152
12/10/2021,ZZH698098,1,3529,Totally Local Company Ltd,390000,"Works - Construction, Repair & Maintenance  ",Repairs and Maintenance,Services to Place,Car Park Maintenance,"5,292.00",200123,12510
12/10/2021,ZZH698103,1,12193,Greater Manchester Combined Au,150000,Consultancy   ,Professional Fees,Corporate and Support Services,Info & Governance,"5,206.00",401020,11146
12/10/2021,ZZH698107,1,6967,Wilde Consultants Ltd,150000,Consultancy   ,Professional Fees,Services to Place,Network Assets Staff,"19,080.00",401020,11959
12/10/2021,ZZH698115,1,13264,Access to Music Ltd t/a Access,320000,Social Community Care Supplies & Services  ,Third party payments - Private/Voluntary Sector,Services to People,Top-up Fund Post 16,"10,997.01",402403,12724
14/10/2021,ZZH698186,1,8106,Tarmac Trading Ltd,391114,"Works - Construction, Repair & Maintenance Buildings Surveys",Capital Expenditure - Fees,#N/A,#N/A,"72,379.95",200316,C.11508.007
14/10/2021,ZZH698188,1,1342,UK Container Maintenance Ltd,182020,Environmental Services Waste Management,Waste Management Equipment,Services to Place,Bulk Container,"2,700.00",400401,10883
14/10/2021,ZZH698188,2,1342,UK Container Maintenance Ltd,182020,Environmental Services Waste Management,Waste Management Equipment,Services to Place,Bulk Container,"2,600.00",400401,10883
14/10/2021,ZZH698188,3,1342,UK Container Maintenance Ltd,182020,Environmental Services Waste Management,Waste Management Equipment,Services to Place,Bulk Container,"5,400.00",400401,10883
14/10/2021,ZZH698198,1,14736,Blackwell Education Ltd,320000,Social Community Care Supplies & Services  ,Third party payments - Private/Voluntary Sector,Services to People,Top-up Fund Post 16,"10,800.00",402403,12724
14/10/2021,ZZH698224,1,14466,Freshworks,270000,Information Communication Technology  ,Information and Communications Technology,Corporate and Support Services,IT Main,"35,148.71",402002,11073
15/10/2021,ZZH698253,1,5214,WSP GROUP PLC,150000,Consultancy   ,Professional Fees,Services to Place,Local Plan Project,"349,800.00",401007,12936
18/10/2021,ZZH698277,1,14669,Sapphire Utility Solutions Ltd,390000,"Works - Construction, Repair & Maintenance  ",Repairs and Maintenance,Services to Place,Mill Lane Cemetery,"10,000.00",200123,11287
18/10/2021,ZZH698294,1,6803,Bibliotheca Ltd,390000,"Works - Construction, Repair & Maintenance  ",Repairs and Maintenance,Corporate and Support Services,Public Libraries Gen,"14,136.04",200123,11329
18/10/2021,ZZH698312,1,82,Marwood Electrical Company Ltd,390000,"Works - Construction, Repair & Maintenance  ",Capital Expenditure - Works,#N/A,#N/A,"1,471.00",200304,C.01197.203
18/10/2021,ZZH698312,2,82,Marwood Electrical Company Ltd,390000,"Works - Construction, Repair & Maintenance  ",Capital Expenditure - Works,#N/A,#N/A,"1,103.25",200304,C.01197.203
18/10/2021,ZZH698312,3,82,Marwood Electrical Company Ltd,390000,"Works - Construction, Repair & Maintenance  ",Capital Expenditure - Works,#N/A,#N/A,"25,889.60",200304,C.01197.203
18/10/2021,ZZH698312,4,82,Marwood Electrical Company Ltd,390000,"Works - Construction, Repair & Maintenance  ",Capital Expenditure - Works,#N/A,#N/A,"2,574.25",200304,C.01197.203
18/10/2021,ZZH698312,5,82,Marwood Electrical Company Ltd,390000,"Works - Construction, Repair & Maintenance  ",Capital Expenditure - Works,#N/A,#N/A,"8,645.28",200304,C.01197.203
18/10/2021,ZZH698312,6,82,Marwood Electrical Company Ltd,390000,"Works - Construction, Repair & Maintenance  ",Capital Expenditure - Works,#N/A,#N/A,540.33,200304,C.01197.203
18/10/2021,ZZH698312,7,82,Marwood Electrical Company Ltd,390000,"Works - Construction, Repair & Maintenance  ",Capital Expenditure - Works,#N/A,#N/A,498.15,200304,C.01197.203
18/10/2021,ZZH698312,8,82,Marwood Electrical Company Ltd,390000,"Works - Construction, Repair & Maintenance  ",Capital Expenditure - Works,#N/A,#N/A,"15,044.13",200304,C.01197.203
18/10/2021,ZZH698312,9,82,Marwood Electrical Company Ltd,390000,"Works - Construction, Repair & Maintenance  ",Capital Expenditure - Works,#N/A,#N/A,"14,814.30",200304,C.01197.203
18/10/2021,ZZH698312,10,82,Marwood Electrical Company Ltd,390000,"Works - Construction, Repair & Maintenance  ",Capital Expenditure - Works,#N/A,#N/A,"1,701.00",200304,C.01197.203
18/10/2021,ZZH698312,11,82,Marwood Electrical Company Ltd,390000,"Works - Construction, Repair & Maintenance  ",Capital Expenditure - Works,#N/A,#N/A,568.51,200304,C.01197.203
19/10/2021,ZZH698343,1,13451,HM Prison and Probation Servic,320000,Social Community Care Supplies & Services  ,Third party payments - Private/Voluntary Sector,Corporate and Support Services,GMCA Cmnity Sfty Fnd,"6,000.00",402403,12965
20/10/2021,ZZH698390,1,13099,ROBERTSON FACILITIES MANAGEMEN,150000,Consultancy   ,Professional Fees,Services to Place,Leisure Level Up Fun,"9,200.00",401020,13124
20/10/2021,ZZH698399,1,3529,Totally Local Company Ltd,391114,"Works - Construction, Repair & Maintenance Buildings Surveys",Capital Expenditure - Fees,#N/A,#N/A,"21,855.99",200316,C.11508.007
20/10/2021,ZZH698406,1,9453,Gaist Solutions Ltd,390000,"Works - Construction, Repair & Maintenance  ",Capital Expenditure - Works,#N/A,#N/A,"21,344.00",200304,C.00690.202
21/10/2021,ZZH698450,1,7280,Works 4U Support Services Ltd,320000,Social Community Care Supplies & Services  ,Third party payments - Private/Voluntary Sector,Services to People,Top-up Fund Post 16,"37,580.00",402403,12724
21/10/2021,ZZH698451,1,1816,Seashell Trust,320000,Social Community Care Supplies & Services  ,Third party payments - Private/Voluntary Sector,Services to People,Top-up Fund Post 16,"1,187,075.56",402403,12724
21/10/2021,ZZH698452,1,242,The Trafford College Group TCG,320000,Social Community Care Supplies & Services  ,Third party payments - Private/Voluntary Sector,Services to People,Top-up Fund Post 16,"148,580.82",402403,12724
21/10/2021,ZZH698462,1,35,CBC Computer Systems Ltd,270000,Information Communication Technology  ,Information and Communications Technology,Services to People,WD-Staff Dev-Grants,"1,020.00",402001,12202
21/10/2021,ZZH698462,2,35,CBC Computer Systems Ltd,270000,Information Communication Technology  ,Information and Communications Technology,Services to People,WD-Staff Dev-Grants,60.00,402001,12202
21/10/2021,ZZH698462,3,35,CBC Computer Systems Ltd,270000,Information Communication Technology  ,Information and Communications Technology,Services to People,WD-Staff Dev-Grants,"9,075.00",402001,12202
21/10/2021,ZZH698463,1,35,CBC Computer Systems Ltd,270000,Information Communication Technology  ,Information and Communications Technology,Services to People,WD-ASC SW Developmen,680.00,402001,11446
21/10/2021,ZZH698463,2,35,CBC Computer Systems Ltd,270000,Information Communication Technology  ,Information and Communications Technology,Services to People,WD-ASC SW Developmen,40.00,402001,11446
21/10/2021,ZZH698463,3,35,CBC Computer Systems Ltd,270000,Information Communication Technology  ,Information and Communications Technology,Services to People,WD-ASC SW Developmen,"6,050.00",402001,11446
21/10/2021,ZZH698471,1,14855,ST4ND,290000,Arts & Leisure Services  ,Publicity and Promotion,Corporate and Support Services,Enhn Lcl Welf Assis,"5,725.50",401801,13150
21/10/2021,ZZH698477,1,5685,Heaton Norris Pavilion Comm,290000,Arts & Leisure Services  ,Publicity and Promotion,Corporate and Support Services,Enhn Lcl Welf Assis,"5,000.00",401801,13150
22/10/2021,ZZH698499,1,13852,The Gift Voucher Shop UK Ltd,290000,Arts & Leisure Services  ,Publicity and Promotion,Services to People,FP - Fostering Staff,"6,000.00",401801,11489
22/10/2021,ZZH698510,1,1129,TMS Consultancy,260000,Human Resources  ,Staff Training,Services to Place,Highways-Road Safety,"5,200.00",102020,11970
22/10/2021,ZZH698526,1,13852,The Gift Voucher Shop UK Ltd,290000,Arts & Leisure Services  ,Publicity and Promotion,Services to People,SC - Leaving Care,"6,825.00",401801,11501
22/10/2021,ZZH698541,1,9929,ACE PROJECTS,290000,Arts & Leisure Services  ,Publicity and Promotion,Corporate and Support Services,Enhn Lcl Welf Assis,"5,400.74",401801,13150
25/10/2021,ZZH698562,1,6967,Wilde Consultants Ltd,150000,Consultancy   ,Professional Fees,Corporate and Support Services,Spatial Intelligence,"7,425.00",401007,11973
25/10/2021,ZZH698574,1,6748,GEORGE COX & SONS LTD,390000,Supplies and services,Supplies and services,#N/A,#N/A,"19,602.27",401600,C.01448.203
26/10/2021,ZZH698612,1,8233,MGB Plastics Ltd,182020,Environmental Services Waste Management,Waste Management Equipment,Services to Place,Wheelie Bins,"15,456.00",400401,10864
26/10/2021,ZZH698632,1,6967,Wilde Consultants Ltd,150000,Consultancy   ,Professional Fees,#N/A,#N/A,"5,875.20",401007,C.01436.201
26/10/2021,ZZH698641,1,9920,CIRIA,260000,Human Resources  ,Staff Training,Services to Place,D & I Team,"6,800.00",102020,11960
26/10/2021,ZZH698646,1,757,Transport for Greater Manchest,150000,Consultancy   ,Professional Fees,#N/A,#N/A,"12,150.00",401007,C.01326.201
27/10/2021,ZZH698649,1,3529,Totally Local Company Ltd,240000,Horticultural  ,Grounds Maintenance,#N/A,#N/A,"38,558.59",202032,C.01451.203
27/10/2021,ZZH698654,1,12344,Graham Construction Ltd,150000,Consultancy   ,Professional Fees,Services to Place,Regen & Development,"160,000.00",401020,10098
27/10/2021,ZZH698666,1,2927,XMA Ltd,270000,Information Communication Technology  ,Information and Communications Technology,Corporate and Support Services,IT Main,"13,359.06",402001,11073
27/10/2021,ZZH698666,2,2927,XMA Ltd,270000,Information Communication Technology  ,Information and Communications Technology,Corporate and Support Services,IT Main,256.00,402001,11073
27/10/2021,ZZH698666,3,2927,XMA Ltd,270000,Information Communication Technology  ,Information and Communications Technology,Corporate and Support Services,IT Main,"6,190.50",402001,11073
27/10/2021,ZZH698686,1,13116,Mazars LLP,201100,Financial Services Audit ,Professional Fees,Corporate and Support Services,U-Misc Fin-Corp Mang,"97,119.00",401003,10971
27/10/2021,ZZH698687,1,1644,Tameside MBC,150000,Consultancy   ,Professional Fees,Services to People,MCA Grant,"59,095.00",401020,11691
27/10/2021,ZZH698688,1,1339,Stockport NHS Foundation Trust,999999,Fees and Charges,Fees and Charges,Services to People,SNC,"5,711.94",402404,12929
27/10/2021,ZZH698698,1,6803,Bibliotheca Ltd,270000,Information Communication Technology  ,Information and Communications Technology,Corporate and Support Services,Public Libraries Gen,300.00,402001,11329
27/10/2021,ZZH698698,2,6803,Bibliotheca Ltd,270000,Information Communication Technology  ,Information and Communications Technology,Corporate and Support Services,Public Libraries Gen,"5,550.00",402001,11329
27/10/2021,ZZH698698,3,6803,Bibliotheca Ltd,270000,Information Communication Technology  ,Information and Communications Technology,Corporate and Support Services,Public Libraries Gen,"6,400.00",402001,11329
27/10/2021,ZZH698698,4,6803,Bibliotheca Ltd,270000,Information Communication Technology  ,Information and Communications Technology,Corporate and Support Services,Public Libraries Gen,800.00,402001,11329
27/10/2021,ZZH698700,1,1799,Stockport Homes,181800,Environmental Services Technical Equipment ,Furniture and Equipment,Corporate and Support Services,Public Libraries Gen,"5,377.22",400111,11329
27/10/2021,ZZH698701,1,1799,Stockport Homes,181800,Environmental Services Technical Equipment ,Furniture and Equipment,Corporate and Support Services,Public Libraries Gen,"5,377.22",400111,11329
28/10/2021,ZZH698732,1,6967,Wilde Consultants Ltd,150000,Consultancy   ,Professional Fees,Services to Place,MS Design Frnwk Staf,"18,100.00",401007,13107
28/10/2021,ZZH698733,1,6967,Wilde Consultants Ltd,150000,Consultancy   ,Professional Fees,Services to Place,MS Design Frnwk Staf,"18,100.00",401007,13107
29/10/2021,ZZH698764,1,13495,Pell Frischmann Consultants Lt,390000,Supplies and services,Supplies and services,#N/A,#N/A,"69,311.00",401600,C.01467.201
29/10/2021,ZZH698768,1,6748,GEORGE COX & SONS LTD,390000,Supplies and services,Supplies and services,#N/A,#N/A,"30,673.84",401600,C.01474.203
29/10/2021,ZZH698769,1,6748,GEORGE COX & SONS LTD,390000,Supplies and services,Supplies and services,#N/A,#N/A,"67,873.60",401600,C.01473.203
01/11/2021,ZZH698771,1,13125,18 St John Street Chambers,150000,Consultancy   ,Professional Fees,Corporate and Support Services,Legal Fees Budget,"5,270.00",401020,12271
01/11/2021,ZZH698804,1,14860,Wilde Recruitment Ltd,150000,Consultancy   ,Professional Fees,Corporate and Support Services,Spatial Intelligence,"7,425.00",401007,11973
01/11/2021,ZZH698805,1,13495,Pell Frischmann Consultants Lt,390000,Supplies and services,Supplies and services,#N/A,#N/A,"6,750.00",401600,C.01467.201
01/11/2021,ZZH698808,1,14772,Purcell Architecture Limited,390000,"Works - Construction, Repair & Maintenance  ",Repairs and Maintenance,#N/A,#N/A,"14,421.25",200123,C.11515
01/11/2021,ZZH698821,1,6967,Wilde Consultants Ltd,150000,Consultancy   ,Professional Fees,Services to Place,MS Design Frnwk Staf,"24,675.00",401007,13107
01/11/2021,ZZH698822,1,6967,Wilde Consultants Ltd,150000,Consultancy   ,Professional Fees,Services to Place,MS Design Frnwk Staf,"58,500.00",401007,13107
01/11/2021,ZZH698823,1,6967,Wilde Consultants Ltd,150000,Consultancy   ,Professional Fees,Services to Place,MS Design Frnwk Staf,"58,500.00",401007,13107
01/11/2021,ZZH698824,1,6967,Wilde Consultants Ltd,150000,Consultancy   ,Professional Fees,Services to Place,MS Design Frnwk Staf,"18,100.00",401007,13107
01/11/2021,ZZH698825,1,6967,Wilde Consultants Ltd,150000,Consultancy   ,Professional Fees,Services to Place,MS Design Frnwk Staf,"32,250.00",401007,13107
02/11/2021,ZZH698873,1,3529,Totally Local Company Ltd,390000,Supplies and services,Supplies and services,#N/A,#N/A,"12,820.00",401600,C.01323.203
02/11/2021,ZZH698904,1,7025,CBRE Limited,150000,Consultancy   ,Professional Fees,Services to Place,Stockport Exch.Phase,"5,000.00",401020,13085
02/11/2021,ZZH698907,1,14857,Christy Wheatley Speech and La,320000,Social Community Care Supplies & Services  ,Third party payments - Private/Voluntary Sector,Services to People,Top-up Fund Post 16,"5,104.00",402403,12724
02/11/2021,ZZH698908,1,14851,Cambridge Online Academy,320000,Social Community Care Supplies & Services  ,Third party payments - Private/Voluntary Sector,Services to People,Top-up Fund Post 16,"7,920.00",402403,12724
02/11/2021,ZZH698910,1,2213,Myerscough College,320000,Social Community Care Supplies & Services  ,Third party payments - Private/Voluntary Sector,Services to People,Top-up Fund Post 16,"6,171.00",402403,12724
02/11/2021,ZZH698911,1,14853,ProjectINC,320000,Social Community Care Supplies & Services  ,Third party payments - Private/Voluntary Sector,Services to People,Top-up Fund Post 16,"24,000.00",402403,12724
02/11/2021,ZZH698925,1,3529,Totally Local Company Ltd,390000,Supplies and services,Supplies and services,#N/A,#N/A,"13,614.84",401600,C.01368.203
02/11/2021,ZZH698932,1,13495,Pell Frischmann Consultants Lt,390000,Supplies and services,Supplies and services,#N/A,#N/A,"9,840.00",401600,C.01467.201
03/11/2021,ZZH698975,1,1722,The Together Trust Centre,261500,Human Resources Training & Conferences ,Fees and Charges,Services to People,SEN Independent Sch,"24,573.25",401024,10372
03/11/2021,ZZH698985,1,12180,Acorn Care and Education,261500,Human Resources Training & Conferences ,Fees and Charges,Services to People,SEN Independent Sch,"24,305.23",401024,10372
04/11/2021,ZZH699040,1,833,Egbert Taylor Ltd,182020,Environmental Services Waste Management,Waste Management Equipment,Services to Place,Bulk Container,"5,154.23",400401,10883
04/11/2021,ZZH699040,2,833,Egbert Taylor Ltd,182020,Environmental Services Waste Management,Waste Management Equipment,Services to Place,Bulk Container,"3,522.20",400401,10883
04/11/2021,ZZH699040,3,833,Egbert Taylor Ltd,182020,Environmental Services Waste Management,Waste Management Equipment,Services to Place,Bulk Container,"4,837.05",400401,10883
04/11/2021,ZZH699040,4,833,Egbert Taylor Ltd,182020,Environmental Services Waste Management,Waste Management Equipment,Services to Place,Bulk Container,"3,201.90",400401,10883
04/11/2021,ZZH699041,1,8233,MGB Plastics Ltd,182020,Environmental Services Waste Management,Waste Management Equipment,Services to Place,Wheelie Bins,"7,168.00",400401,10864
04/11/2021,ZZH699041,2,8233,MGB Plastics Ltd,182020,Environmental Services Waste Management,Waste Management Equipment,Services to Place,Wheelie Bins,"7,168.00",400401,10864
04/11/2021,ZZH699053,1,7030,MANCHESTER CITY COUNCIL SHARED,999999,Third party payments - Public Sector,Third party payments - Public Sector,Services to People,Regional Imp Allianc,"50,000.00",500303,13031
04/11/2021,ZZH699054,1,13860,Howard Lynn Property Ltd,261400,Human Resources Temporary & Agency Staff ,Agency Staff,Services to Place,Property Client Acct,"6,615.00",100290,12328
04/11/2021,ZZH699064,1,3529,Totally Local Company Ltd,390000,Supplies and services,Supplies and services,#N/A,#N/A,"82,006.88",401600,C.00880.203
04/11/2021,ZZH699065,1,3529,Totally Local Company Ltd,390000,Supplies and services,Supplies and services,#N/A,#N/A,"93,500.85",401600,C.00880.203
05/11/2021,ZZH699095,1,10714,Ross Auto Engineering Ltd,210000,Furniture & Soft Furnishings  ,Furniture and Equipment,#N/A,#N/A,"5,085.00",400105,C.10004.001
05/11/2021,ZZH699116,1,1644,Tameside MBC,999999,Third party payments - Public Sector,Third party payments - Public Sector,Services to People,Safeguarding Adults,"59,095.00",500303,12424
05/11/2021,ZZH699124,1,1722,The Together Trust Centre,320000,Social Community Care Supplies & Services  ,Care Payments,Services to People,DP - Respite,"8,314.26",530335,11513
05/11/2021,ZZH699125,1,11897,SENSE CAS FINANCE TEAM,320000,Social Community Care Supplies & Services  ,Care Payments,Services to People,DP - Respite,"5,000.00",530335,11513
08/11/2021,ZZH699136,1,2978,Teaching Personnel Ltd,261500,Human Resources Training & Conferences ,Fees and Charges,Services to People,Education Access,"40,000.00",401024,10744
08/11/2021,ZZH699137,1,9927,Vision for Education,261500,Human Resources Training & Conferences ,Fees and Charges,Services to People,Education Access,"24,000.00",401024,10744
08/11/2021,ZZH699146,1,7861,Stockport District CAB,150000,Consultancy   ,Professional Fees,Corporate and Support Services,"Info, Advice & Guide","72,500.00",401020,13006
08/11/2021,ZZH699147,1,7861,Stockport District CAB,150000,Consultancy   ,Professional Fees,Corporate and Support Services,"Info, Advice & Guide","72,500.00",401020,13006
08/11/2021,ZZH699166,1,14642,North West Media Ltd,290000,Arts & Leisure Services  ,Publicity and Promotion,Services to People,CADA grant,"15,000.00",401801,13032
09/11/2021,ZZH699176,1,757,Transport for Greater Manchest,150000,Consultancy   ,Professional Fees,#N/A,#N/A,"9,600.00",401007,C.01063
09/11/2021,ZZH699185,1,11021,The Laurus Trust (Cheadle Hulm,170000,Education  ,Third party payments - Public Sector,Services to People,OLA pupils,"7,814.00",500304,10371
09/11/2021,ZZH699195,1,1799,Stockport Homes,320000,Social Community Care Supplies & Services  ,Third party payments - Private/Voluntary Sector,Corporate and Support Services,GMCA Cmnity Sfty Fnd,"8,167.00",402403,12965
09/11/2021,ZZH699196,1,12180,Acorn Care and Education,261500,Human Resources Training & Conferences ,Fees and Charges,Services to People,SEN Independent Sch,"31,454.04",401024,10372
09/11/2021,ZZH699197,1,12180,Acorn Care and Education,261500,Human Resources Training & Conferences ,Fees and Charges,Services to People,SEN Independent Sch,"39,673.49",401024,10372
09/11/2021,ZZH699198,1,12180,Acorn Care and Education,261500,Human Resources Training & Conferences ,Fees and Charges,Services to People,SEN Independent Sch,"39,673.49",401024,10372
09/11/2021,ZZH699221,1,216,Manchester City Council,320000,Social Community Care Supplies & Services  ,Care Payments,Services to People,FP - Fostering,"49,072.57",530323,11441
09/11/2021,ZZH699222,1,683,AECOM Limited,150000,Consultancy   ,Professional Fees,#N/A,#N/A,"11,153.60",401007,C.01326.201
10/11/2021,ZZH699245,1,7030,MANCHESTER CITY COUNCIL SHARED,999999,Third party payments - Public Sector,Third party payments - Public Sector,Services to People,RAA Adoption Count,"450,000.00",500303,12957
10/11/2021,ZZH699250,1,3707,Salford City Council/Finance,999999,Third party payments - Public Sector,Third party payments - Public Sector,Services to People,RAA Adoption Count,"500,000.00",500303,12957
10/11/2021,ZZH699251,1,7167,Cheshire East Borough Council.,999999,Third party payments - Public Sector,Third party payments - Public Sector,Services to People,RAA Adoption Count,"260,000.00",500303,12957
11/11/2021,ZZH699312,1,6748,GEORGE COX & SONS LTD,390000,"Works - Construction, Repair & Maintenance  ",Capital Expenditure - Works,#N/A,#N/A,"32,738.12",200304,C.01280.203
11/11/2021,ZZH699325,1,14824,Kathleen Carey,150000,Consultancy   ,Professional Fees,Services to People,SG - Child Prot-Lscb,"12,000.00",401007,11424
11/11/2021,ZZH699326,1,8236,STOCKPORT WITHOUT ABUSE,390000,Supplies and services,Supplies and services,Services to People,Domestic Abuse Bill,"16,500.00",401600,13111
11/11/2021,ZZH699327,1,8236,STOCKPORT WITHOUT ABUSE,390000,Supplies and services,Supplies and services,Services to People,Domestic Abuse Bill,"16,000.00",401600,13111
12/11/2021,ZZH699361,1,10858,Acorn Recovery Projects,261500,Human Resources Training & Conferences ,Fees and Charges,Services to Place,Contin Educ Service,"7,109.00",401024,10511
12/11/2021,ZZH699374,1,3529,Totally Local Company Ltd,181800,Environmental Services Technical Equipment ,Furniture and Equipment,#N/A,#N/A,"11,905.00",400110,C.01410.201
12/11/2021,ZZH699375,1,683,AECOM Limited,150000,Consultancy   ,Professional Fees,#N/A,#N/A,"54,376.00",401007,C.00717.201
12/11/2021,ZZH699384,1,683,AECOM Limited,150000,Consultancy   ,Professional Fees,Services to Place,Feasibility,"51,833.60",401007,13062
15/11/2021,ZZH699395,1,3529,Totally Local Company Ltd,240000,Horticultural  ,Grounds Maintenance,Services to Place,SPB - Investment Est,"6,875.00",202029,10062
15/11/2021,ZZH699397,1,14778,Bellrock Property and Facilite,390000,"Works - Construction, Repair & Maintenance  ",Repairs and Maintenance,#N/A,#N/A,"800,000.00",200123,C.11508.004
15/11/2021,ZZH699423,1,3529,Totally Local Company Ltd,240000,Horticultural  ,Grounds Maintenance,#N/A,#N/A,"6,040.00",202029,C.01000.098
15/11/2021,ZZH699428,1,628,Life Leisure,150000,Consultancy   ,Professional Fees,Services to People,PH-Physical Activity,"15,500.00",401020,12834
15/11/2021,ZZH699441,1,6748,GEORGE COX & SONS LTD,390000,Supplies and services,Supplies and services,#N/A,#N/A,"19,664.80",401600,C.01339.203
15/11/2021,ZZH699442,1,6748,GEORGE COX & SONS LTD,390000,Supplies and services,Supplies and services,#N/A,#N/A,"9,367.08",401600,C.01337.203
16/11/2021,ZZH699447,1,11715,CBRE,150000,Consultancy   ,Professional Fees,#N/A,#N/A,"29,574.40",401020,C.10932.005
16/11/2021,ZZH699448,1,11715,CBRE,150000,Consultancy   ,Professional Fees,#N/A,#N/A,"14,648.00",401020,C.10932.005
16/11/2021,ZZH699449,1,1583,Tunstall Healthcare (UK) Ltd,210000,Furniture & Soft Furnishings  ,Furniture and Equipment,#N/A,#N/A,"3,750.00",400105,C.10004.001
16/11/2021,ZZH699449,2,1583,Tunstall Healthcare (UK) Ltd,210000,Furniture & Soft Furnishings  ,Furniture and Equipment,#N/A,#N/A,"1,500.00",400105,C.10004.001
16/11/2021,ZZH699449,3,1583,Tunstall Healthcare (UK) Ltd,210000,Furniture & Soft Furnishings  ,Furniture and Equipment,#N/A,#N/A,"1,632.00",400105,C.10004.001
16/11/2021,ZZH699449,4,1583,Tunstall Healthcare (UK) Ltd,210000,Furniture & Soft Furnishings  ,Furniture and Equipment,#N/A,#N/A,650.00,400105,C.10004.001
16/11/2021,ZZH699453,1,1799,Stockport Homes,320000,Social Community Care Supplies & Services  ,Third party payments - Private/Voluntary Sector,Corporate and Support Services,GMCA Cmnity Sfty Fnd,"37,500.00",402403,12965
16/11/2021,ZZH699466,1,3529,Totally Local Company Ltd,240000,Horticultural  ,Grounds Maintenance,Services to Place,Play,"19,690.00",202032,11267
16/11/2021,ZZH699492,1,12180,Acorn Care and Education,261500,Human Resources Training & Conferences ,Fees and Charges,Services to People,SEN Independent Sch,"23,200.45",401024,10372
17/11/2021,ZZH699518,1,13676,Weightmans LLP Client Acc Live,280000,Legal Services  ,Legal Fees,Corporate and Support Services,Legal Fees Budget,"5,000.00",401016,12271
17/11/2021,ZZH699525,1,14885,Horsfield Building Services En,390000,"Works - Construction, Repair & Maintenance  ",Repairs and Maintenance,#N/A,#N/A,"205,796.91",200123,C.11516.016
17/11/2021,ZZH699526,1,14884,North Cheshire Holdings Limite,390000,"Works - Construction, Repair & Maintenance  ",Repairs and Maintenance,#N/A,#N/A,"1,044,176.00",200123,C.11516.016
18/11/2021,ZZH699592,1,14872,Just PR & Marketing Ltd,261400,Human Resources Temporary & Agency Staff ,Agency Staff,Services to Place,Town Centre Devt Tea,"8,580.00",100290,10072
18/11/2021,ZZH699602,1,12533,Priory Group - Northern Office,310000,Healthcare  ,Third party payments - Public Sector,Services to People,Hospital Tuition,"2,852.00",500402,10370
18/11/2021,ZZH699602,2,12533,Priory Group - Northern Office,310000,Healthcare  ,Third party payments - Public Sector,Services to People,Hospital Tuition,"2,944.00",500402,10370
18/11/2021,ZZH699602,3,12533,Priory Group - Northern Office,310000,Healthcare  ,Third party payments - Public Sector,Services to People,Hospital Tuition,"1,656.00",500402,10370
19/11/2021,ZZH699622,1,3529,Totally Local Company Ltd,390000,"Works - Construction, Repair & Maintenance  ",Capital Expenditure - Works,Services to Place,Highway Structs R+R,"5,733.40",200304,11975
19/11/2021,ZZH699641,1,3707,Salford City Council/Finance,999999,Third party payments - Public Sector,Third party payments - Public Sector,Services to People,Regional Imp Allianc,"597,094.00",500303,13031
22/11/2021,ZZH699672,1,14619,Constellia Public Limited,150000,Consultancy   ,Professional Fees,Corporate and Support Services,Strategy & Design,"48,442.00",401007,12642
22/11/2021,ZZH699685,1,12182,Ladybird Childcare Brinnington,240000,Horticultural  ,Grounds Maintenance,Services to People,Brinnigton CC,"9,000.00",202030,12295
22/11/2021,ZZH699697,1,10007,KPMG LLP ADVISORY,201100,Financial Services Audit ,Professional Fees,Corporate and Support Services,U-Misc Fin-Corp Mang,"12,424.00",401003,10971
22/11/2021,ZZH699721,1,10846,LOUISE QUIGLEY,150000,Consultancy   ,Professional Fees,Corporate and Support Services,Legal Fees Budget,"7,187.50",401020,12271
23/11/2021,ZZH699739,1,757,Transport for Greater Manchest,150000,Consultancy   ,Professional Fees,#N/A,#N/A,"17,360.00",401007,C.01471.201
23/11/2021,ZZH699742,1,10899,Agricultural and Rural Centre,320000,Social Community Care Supplies & Services  ,Third party payments - Private/Voluntary Sector,Services to People,Top-up Fund Post 16,"9,360.00",402403,12724
23/11/2021,ZZH699751,1,8233,MGB Plastics Ltd,182020,Environmental Services Waste Management,Waste Management Equipment,Services to Place,Wheelie Bins,"15,456.00",400401,10864
23/11/2021,ZZH699751,2,8233,MGB Plastics Ltd,182020,Environmental Services Waste Management,Waste Management Equipment,Services to Place,Wheelie Bins,"14,304.00",400401,10864
23/11/2021,ZZH699754,1,3529,Totally Local Company Ltd,240000,Horticultural  ,Grounds Maintenance,#N/A,#N/A,"23,903.32",202032,C.10775
23/11/2021,ZZH699783,1,7025,CBRE Limited,150000,Consultancy   ,Professional Fees,Services to Place,MDC Mayoral DC,"15,150.00",401007,13033
24/11/2021,ZZH699807,1,13646,Beckett Telecom,270000,Information Communication Technology  ,Information and Communications Technology,Corporate and Support Services,IT Infrastructure,"12,500.00",402001,11324
24/11/2021,ZZH699833,1,14820,Bennisound and Light Ltd,#N/A,#N/A,#N/A,Services to Place,Investing in Growth,"9,792.00",400999,10102
24/11/2021,ZZH699844,1,9301,STOCKPORT REFUGEE SUPPORT GROU,999999,Social Community Care Supplies & Services  ,Service Contract Payments,Services to People,PH-Health Protection,"8,000.00",561704,12739
24/11/2021,ZZH699845,1,12222,Storm Enviromental Ltd,182020,Environmental Services Waste Management,Waste Management Equipment,Services to Place,Bulk Container,"7,887.50",400401,10883
24/11/2021,ZZH699854,1,14895,Y Developments Ltd,390000,"Works - Construction, Repair & Maintenance  ",Repairs and Maintenance,#N/A,#N/A,"18,720.00",200181,C.11502.136
24/11/2021,ZZH699855,1,780,J A Jones + Sons,181800,Environmental Services Technical Equipment ,Furniture and Equipment,Services to Place,Climate Change Now,"11,400.00",400110,13112
24/11/2021,ZZH699855,2,780,J A Jones + Sons,181800,Environmental Services Technical Equipment ,Furniture and Equipment,Services to Place,Climate Change Now,"6,650.00",400110,13112
24/11/2021,ZZH699855,3,780,J A Jones + Sons,181800,Environmental Services Technical Equipment ,Furniture and Equipment,Services to Place,Climate Change Now,"9,604.00",400110,13112
24/11/2021,ZZH699855,4,780,J A Jones + Sons,181800,Environmental Services Technical Equipment ,Furniture and Equipment,Services to Place,Climate Change Now,65.00,400110,13112
24/11/2021,ZZH699856,1,780,J A Jones + Sons,181800,Environmental Services Technical Equipment ,Furniture and Equipment,Services to Place,Climate Change Now,"2,262.00",400110,13112
24/11/2021,ZZH699856,2,780,J A Jones + Sons,181800,Environmental Services Technical Equipment ,Furniture and Equipment,Services to Place,Climate Change Now,"1,440.00",400110,13112
24/11/2021,ZZH699856,3,780,J A Jones + Sons,181800,Environmental Services Technical Equipment ,Furniture and Equipment,Services to Place,Climate Change Now,592.00,400110,13112
24/11/2021,ZZH699856,4,780,J A Jones + Sons,181800,Environmental Services Technical Equipment ,Furniture and Equipment,Services to Place,Climate Change Now,"2,160.00",400110,13112
24/11/2021,ZZH699856,5,780,J A Jones + Sons,181800,Environmental Services Technical Equipment ,Furniture and Equipment,Services to Place,Climate Change Now,660.00,400110,13112
24/11/2021,ZZH699856,6,780,J A Jones + Sons,181800,Environmental Services Technical Equipment ,Furniture and Equipment,Services to Place,Climate Change Now,"1,254.00",400110,13112
24/11/2021,ZZH699856,7,780,J A Jones + Sons,181800,Environmental Services Technical Equipment ,Furniture and Equipment,Services to Place,Climate Change Now,"2,294.00",400110,13112
24/11/2021,ZZH699856,8,780,J A Jones + Sons,181800,Environmental Services Technical Equipment ,Furniture and Equipment,Services to Place,Climate Change Now,456.00,400110,13112
24/11/2021,ZZH699856,9,780,J A Jones + Sons,181800,Environmental Services Technical Equipment ,Furniture and Equipment,Services to Place,Climate Change Now,"1,518.00",400110,13112
24/11/2021,ZZH699856,10,780,J A Jones + Sons,181800,Environmental Services Technical Equipment ,Furniture and Equipment,Services to Place,Climate Change Now,924.00,400110,13112
24/11/2021,ZZH699856,11,780,J A Jones + Sons,181800,Environmental Services Technical Equipment ,Furniture and Equipment,Services to Place,Climate Change Now,858.00,400110,13112
24/11/2021,ZZH699856,12,780,J A Jones + Sons,181800,Environmental Services Technical Equipment ,Furniture and Equipment,Services to Place,Climate Change Now,"1,260.00",400110,13112
24/11/2021,ZZH699856,13,780,J A Jones + Sons,181800,Environmental Services Technical Equipment ,Furniture and Equipment,Services to Place,Climate Change Now,"1,452.00",400110,13112
24/11/2021,ZZH699856,14,780,J A Jones + Sons,181800,Environmental Services Technical Equipment ,Furniture and Equipment,Services to Place,Climate Change Now,480.00,400110,13112
24/11/2021,ZZH699856,15,780,J A Jones + Sons,181800,Environmental Services Technical Equipment ,Furniture and Equipment,Services to Place,Climate Change Now,"1,190.00",400110,13112
24/11/2021,ZZH699856,16,780,J A Jones + Sons,181800,Environmental Services Technical Equipment ,Furniture and Equipment,Services to Place,Climate Change Now,"6,450.00",400110,13112
24/11/2021,ZZH699856,17,780,J A Jones + Sons,181800,Environmental Services Technical Equipment ,Furniture and Equipment,Services to Place,Climate Change Now,649.00,400110,13112
24/11/2021,ZZH699856,18,780,J A Jones + Sons,181800,Environmental Services Technical Equipment ,Furniture and Equipment,Services to Place,Climate Change Now,125.00,400110,13112
24/11/2021,ZZH699856,19,780,J A Jones + Sons,181800,Environmental Services Technical Equipment ,Furniture and Equipment,Services to Place,Climate Change Now,64.00,400110,13112
24/11/2021,ZZH699856,20,780,J A Jones + Sons,181800,Environmental Services Technical Equipment ,Furniture and Equipment,Services to Place,Climate Change Now,246.00,400110,13112
24/11/2021,ZZH699856,21,780,J A Jones + Sons,181800,Environmental Services Technical Equipment ,Furniture and Equipment,Services to Place,Climate Change Now,65.00,400110,13112
24/11/2021,ZZH699857,1,780,J A Jones + Sons,181800,Environmental Services Technical Equipment ,Furniture and Equipment,Services to Place,Climate Change Now,"3,276.00",400110,13112
24/11/2021,ZZH699857,2,780,J A Jones + Sons,181800,Environmental Services Technical Equipment ,Furniture and Equipment,Services to Place,Climate Change Now,370.00,400110,13112
24/11/2021,ZZH699857,3,780,J A Jones + Sons,181800,Environmental Services Technical Equipment ,Furniture and Equipment,Services to Place,Climate Change Now,720.00,400110,13112
24/11/2021,ZZH699857,4,780,J A Jones + Sons,181800,Environmental Services Technical Equipment ,Furniture and Equipment,Services to Place,Climate Change Now,"1,782.00",400110,13112
24/11/2021,ZZH699857,5,780,J A Jones + Sons,181800,Environmental Services Technical Equipment ,Furniture and Equipment,Services to Place,Climate Change Now,"1,140.00",400110,13112
24/11/2021,ZZH699857,6,780,J A Jones + Sons,181800,Environmental Services Technical Equipment ,Furniture and Equipment,Services to Place,Climate Change Now,"1,840.00",400110,13112
24/11/2021,ZZH699857,7,780,J A Jones + Sons,181800,Environmental Services Technical Equipment ,Furniture and Equipment,Services to Place,Climate Change Now,207.00,400110,13112
24/11/2021,ZZH699857,8,780,J A Jones + Sons,181800,Environmental Services Technical Equipment ,Furniture and Equipment,Services to Place,Climate Change Now,330.00,400110,13112
24/11/2021,ZZH699857,9,780,J A Jones + Sons,181800,Environmental Services Technical Equipment ,Furniture and Equipment,Services to Place,Climate Change Now,"2,250.00",400110,13112
24/11/2021,ZZH699857,10,780,J A Jones + Sons,181800,Environmental Services Technical Equipment ,Furniture and Equipment,Services to Place,Climate Change Now,65.00,400110,13112
24/11/2021,ZZH699858,1,780,J A Jones + Sons,181800,Environmental Services Technical Equipment ,Furniture and Equipment,Services to Place,Climate Change Now,397.50,400110,13112
24/11/2021,ZZH699858,2,780,J A Jones + Sons,181800,Environmental Services Technical Equipment ,Furniture and Equipment,Services to Place,Climate Change Now,397.50,400110,13112
24/11/2021,ZZH699858,3,780,J A Jones + Sons,181800,Environmental Services Technical Equipment ,Furniture and Equipment,Services to Place,Climate Change Now,397.50,400110,13112
24/11/2021,ZZH699858,4,780,J A Jones + Sons,181800,Environmental Services Technical Equipment ,Furniture and Equipment,Services to Place,Climate Change Now,397.50,400110,13112
24/11/2021,ZZH699858,5,780,J A Jones + Sons,181800,Environmental Services Technical Equipment ,Furniture and Equipment,Services to Place,Climate Change Now,331.25,400110,13112
24/11/2021,ZZH699858,6,780,J A Jones + Sons,181800,Environmental Services Technical Equipment ,Furniture and Equipment,Services to Place,Climate Change Now,331.25,400110,13112
24/11/2021,ZZH699858,7,780,J A Jones + Sons,181800,Environmental Services Technical Equipment ,Furniture and Equipment,Services to Place,Climate Change Now,331.25,400110,13112
24/11/2021,ZZH699858,8,780,J A Jones + Sons,181800,Environmental Services Technical Equipment ,Furniture and Equipment,Services to Place,Climate Change Now,265.00,400110,13112
24/11/2021,ZZH699858,9,780,J A Jones + Sons,181800,Environmental Services Technical Equipment ,Furniture and Equipment,Services to Place,Climate Change Now,265.00,400110,13112
24/11/2021,ZZH699858,10,780,J A Jones + Sons,181800,Environmental Services Technical Equipment ,Furniture and Equipment,Services to Place,Climate Change Now,265.00,400110,13112
24/11/2021,ZZH699858,11,780,J A Jones + Sons,181800,Environmental Services Technical Equipment ,Furniture and Equipment,Services to Place,Climate Change Now,279.00,400110,13112
24/11/2021,ZZH699858,12,780,J A Jones + Sons,181800,Environmental Services Technical Equipment ,Furniture and Equipment,Services to Place,Climate Change Now,279.00,400110,13112
24/11/2021,ZZH699858,13,780,J A Jones + Sons,181800,Environmental Services Technical Equipment ,Furniture and Equipment,Services to Place,Climate Change Now,279.00,400110,13112
24/11/2021,ZZH699858,14,780,J A Jones + Sons,181800,Environmental Services Technical Equipment ,Furniture and Equipment,Services to Place,Climate Change Now,795.00,400110,13112
24/11/2021,ZZH699858,15,780,J A Jones + Sons,181800,Environmental Services Technical Equipment ,Furniture and Equipment,Services to Place,Climate Change Now,530.00,400110,13112
24/11/2021,ZZH699858,16,780,J A Jones + Sons,181800,Environmental Services Technical Equipment ,Furniture and Equipment,Services to Place,Climate Change Now,530.00,400110,13112
24/11/2021,ZZH699858,17,780,J A Jones + Sons,181800,Environmental Services Technical Equipment ,Furniture and Equipment,Services to Place,Climate Change Now,"2,650.00",400110,13112
24/11/2021,ZZH699858,18,780,J A Jones + Sons,181800,Environmental Services Technical Equipment ,Furniture and Equipment,Services to Place,Climate Change Now,65.00,400110,13112
24/11/2021,ZZH699859,1,12384,Synergy Stockport,290000,Arts & Leisure Services  ,Publicity and Promotion,Services to Place,Afghan Evacuee Costs,"7,600.00",401801,13149
24/11/2021,ZZH699860,1,12384,Synergy Stockport,290000,Arts & Leisure Services  ,Publicity and Promotion,Services to Place,Afghan Evacuee Costs,"8,645.00",401801,13149
24/11/2021,ZZH699861,1,14890,IHS (GLOBAL) LTD,270000,Information Communication Technology  ,Information and Communications Technology,Services to Place,Property Client Acct,"14,607.00",402001,12328
24/11/2021,ZZH699862,1,14898,Penna PLC,261300,Human Resources Recruitment & Assessment ,Advertising,Corporate and Support Services,Chief Execs Office,"21,590.00",102040,11112
25/11/2021,ZZH699892,1,5915,Atkins Global Limited,150000,Consultancy   ,Professional Fees,Services to Place,Feasibility,"32,313.60",401007,13062
25/11/2021,ZZH699901,1,780,J A Jones + Sons,181800,Environmental Services Technical Equipment ,Furniture and Equipment,Services to Place,Climate Change Now,648.00,400110,13112
25/11/2021,ZZH699901,2,780,J A Jones + Sons,181800,Environmental Services Technical Equipment ,Furniture and Equipment,Services to Place,Climate Change Now,792.00,400110,13112
25/11/2021,ZZH699901,3,780,J A Jones + Sons,181800,Environmental Services Technical Equipment ,Furniture and Equipment,Services to Place,Climate Change Now,90.00,400110,13112
25/11/2021,ZZH699901,4,780,J A Jones + Sons,181800,Environmental Services Technical Equipment ,Furniture and Equipment,Services to Place,Climate Change Now,255.00,400110,13112
25/11/2021,ZZH699901,5,780,J A Jones + Sons,181800,Environmental Services Technical Equipment ,Furniture and Equipment,Services to Place,Climate Change Now,"4,350.00",400110,13112
25/11/2021,ZZH699901,6,780,J A Jones + Sons,181800,Environmental Services Technical Equipment ,Furniture and Equipment,Services to Place,Climate Change Now,65.00,400110,13112
25/11/2021,ZZH699905,1,10499,Gravitas Recruitment Group Lim,150000,Consultancy   ,Professional Fees,Corporate and Support Services,Business Intelligenc,"24,800.00",401007,11872
25/11/2021,ZZH699915,1,3529,Totally Local Company Ltd,240000,Horticultural  ,Grounds Maintenance,#N/A,#N/A,"47,197.71",202032,C.10775
25/11/2021,ZZH699918,1,3529,Totally Local Company Ltd,390000,Supplies and services,Supplies and services,#N/A,#N/A,"41,762.14",401600,C.00880.203
25/11/2021,ZZH699929,1,1799,Stockport Homes,390000,"Works - Construction, Repair & Maintenance  ",Repairs and Maintenance,#N/A,#N/A,"196,641.61",200160,C.10988
25/11/2021,ZZH699930,1,1799,Stockport Homes,390000,"Works - Construction, Repair & Maintenance  ",Repairs and Maintenance,Services to Place,CCTV-Control,"19,179.00",200160,12822
25/11/2021,ZZH699931,1,14898,Penna PLC,261300,Human Resources Recruitment & Assessment ,Advertising,Corporate and Support Services,Chief Execs Office,"11,945.00",102040,11112
25/11/2021,ZZH699932,1,3529,Totally Local Company Ltd,390000,"Works - Construction, Repair & Maintenance  ",Signage,Services to Place,Car Parks Admin,"21,730.51",201205,10005
26/11/2021,ZZH699943,1,13601,Yvonne Parker,150000,Consultancy   ,Professional Fees,Services to Place,Planning,"9,000.00",401007,12150
26/11/2021,ZZH699969,1,6748,GEORGE COX & SONS LTD,390000,Supplies and services,Supplies and services,Services to Place,Highway Structs R+R,"12,803.01",401600,11975
29/11/2021,ZZH699994,1,13551,Permanent Futures Ltd,150000,Consultancy   ,Professional Fees,Services to People,AOM costs,"80,000.00",401007,11878
29/11/2021,ZZH700005,1,7979,Delib Limited,181800,Environmental Services Technical Equipment ,Furniture and Equipment,Corporate and Support Services,Strategy & Design,"24,329.00",400110,12642
29/11/2021,ZZH700007,1,2628,North West Employers,150000,Consultancy   ,Professional Fees,Corporate and Support Services,POD Core Staffing,"7,500.00",401007,12590
29/11/2021,ZZH700009,1,82,Marwood Electrical Company Ltd,390000,"Works - Construction, Repair & Maintenance  ",Capital Expenditure - Works,#N/A,#N/A,"18,802.35",200304,C.01199.203
29/11/2021,ZZH700015,1,3529,Totally Local Company Ltd,390000,Supplies and services,Supplies and services,#N/A,#N/A,"119,507.21",401600,C.01392.203
29/11/2021,ZZH700019,1,9511,TRAFFORD MB COUNCIL,999999,Third party payments - Public Sector,Third party payments - Public Sector,Services to People,RAA Adoption Count,"320,000.00",500303,12957
30/11/2021,ZZH700059,1,14895,Y Developments Ltd,390000,"Works - Construction, Repair & Maintenance  ",Repairs and Maintenance,#N/A,#N/A,"18,720.00",200181,C.11502.136
30/11/2021,ZZH700060,1,12344,Graham Construction Ltd,150000,Consultancy   ,Professional Fees,#N/A,#N/A,"109,430.00",401020,C.10960
30/11/2021,ZZH700076,1,757,Transport for Greater Manchest,150000,Consultancy   ,Professional Fees,#N/A,#N/A,"13,300.00",401007,C.01276.201
30/11/2021,ZZH700081,1,14872,Just PR & Marketing Ltd,261400,Human Resources Temporary & Agency Staff ,Agency Staff,Services to Place,Town Centre Devt Tea,"8,580.00",100290,10072
30/11/2021,ZZH700106,1,14804,CAN Digital Solutions Ltd,190000,Facilities & Management Services  ,Publicity and Promotion,Services to People,Community Champions,"5,600.00",401803,13103
30/11/2021,ZZH700108,1,12193,Greater Manchester Combined Au,150000,Consultancy   ,Professional Fees,#N/A,#N/A,"15,188.00",401007,C.01326.201
01/12/2021,ZZH700115,1,35,CBC Computer Systems Ltd,270000,Information Communication Technology  ,Information and Communications Technology,Corporate and Support Services,IT Traded (SHG),"2,345.00",402001,12106
01/12/2021,ZZH700115,2,35,CBC Computer Systems Ltd,270000,Information Communication Technology  ,Information and Communications Technology,Corporate and Support Services,IT Traded (SHG),69.00,402001,12106
01/12/2021,ZZH700115,3,35,CBC Computer Systems Ltd,270000,Information Communication Technology  ,Information and Communications Technology,Corporate and Support Services,IT Traded (SHG),339.90,402001,12106
01/12/2021,ZZH700115,4,35,CBC Computer Systems Ltd,270000,Information Communication Technology  ,Information and Communications Technology,Corporate and Support Services,IT Traded (SHG),"3,885.00",402001,12106
01/12/2021,ZZH700115,5,35,CBC Computer Systems Ltd,270000,Information Communication Technology  ,Information and Communications Technology,Corporate and Support Services,IT Traded (SHG),699.00,402001,12106
01/12/2021,ZZH700115,6,35,CBC Computer Systems Ltd,270000,Information Communication Technology  ,Information and Communications Technology,Corporate and Support Services,IT Traded (SHG),329.00,402001,12106
01/12/2021,ZZH700118,1,35,CBC Computer Systems Ltd,270000,Information Communication Technology  ,Information and Communications Technology,Services to People,RAA Adoption Count,680.00,402001,12957
01/12/2021,ZZH700118,2,35,CBC Computer Systems Ltd,270000,Information Communication Technology  ,Information and Communications Technology,Services to People,RAA Adoption Count,40.00,402001,12957
01/12/2021,ZZH700118,3,35,CBC Computer Systems Ltd,270000,Information Communication Technology  ,Information and Communications Technology,Services to People,RAA Adoption Count,"4,890.00",402001,12957
01/12/2021,ZZH700118,4,35,CBC Computer Systems Ltd,270000,Information Communication Technology  ,Information and Communications Technology,Services to People,RAA Adoption Count,340.00,402001,12957
01/12/2021,ZZH700130,1,7915,Seddon Construction Ltd,390000,"Works - Construction, Repair & Maintenance  ",Repairs and Maintenance,#N/A,#N/A,"118,202.55",200123,C.11516.006
01/12/2021,ZZH700131,1,7915,Seddon Construction Ltd,390000,"Works - Construction, Repair & Maintenance  ",Repairs and Maintenance,#N/A,#N/A,"118,667.41",200123,C.11516.011
02/12/2021,ZZH700180,1,12816,Eversheds Sutherland (Internat,150000,Consultancy   ,Professional Fees,Services to Place,Stockport Exch.Phase,"10,075.00",401020,13085
02/12/2021,ZZH700192,1,14885,Horsfield Building Services En,390000,"Works - Construction, Repair & Maintenance  ",Repairs and Maintenance,#N/A,#N/A,"145,891.38",200123,C.11516.014
02/12/2021,ZZH700194,1,35,CBC Computer Systems Ltd,270000,Information Communication Technology  ,Information and Communications Technology,Corporate and Support Services,IT Main,"4,690.00",402001,11073
02/12/2021,ZZH700194,2,35,CBC Computer Systems Ltd,270000,Information Communication Technology  ,Information and Communications Technology,Corporate and Support Services,IT Main,138.00,402001,11073
02/12/2021,ZZH700194,3,35,CBC Computer Systems Ltd,270000,Information Communication Technology  ,Information and Communications Technology,Corporate and Support Services,IT Main,339.90,402001,11073
02/12/2021,ZZH700195,1,35,CBC Computer Systems Ltd,270000,Information Communication Technology  ,Information and Communications Technology,Corporate and Support Services,IT Main,"1,360.00",402001,11073
02/12/2021,ZZH700195,2,35,CBC Computer Systems Ltd,270000,Information Communication Technology  ,Information and Communications Technology,Corporate and Support Services,IT Main,80.00,402001,11073
02/12/2021,ZZH700195,3,35,CBC Computer Systems Ltd,270000,Information Communication Technology  ,Information and Communications Technology,Corporate and Support Services,IT Main,"9,780.00",402001,11073
02/12/2021,ZZH700195,4,35,CBC Computer Systems Ltd,270000,Information Communication Technology  ,Information and Communications Technology,Corporate and Support Services,IT Main,680.00,402001,11073
02/12/2021,ZZH700196,1,14907,COLAS LTD,390000,"Works - Construction, Repair & Maintenance  ",Capital Expenditure - Works,#N/A,#N/A,"642,215.15",200304,C.00710.203
02/12/2021,ZZH700208,1,12193,Greater Manchester Combined Au,999999,Social Community Care Supplies & Services  ,Service Contract Payments,Services to People,PH-Drug & Alcohol,"7,450.21",561704,12731
02/12/2021,ZZH700213,1,35,CBC Computer Systems Ltd,270000,Information Communication Technology  ,Information and Communications Technology,Services to People,SF Senior Management,"8,160.00",402001,11486
02/12/2021,ZZH700213,2,35,CBC Computer Systems Ltd,270000,Information Communication Technology  ,Information and Communications Technology,Services to People,SF Senior Management,480.00,402001,11486
02/12/2021,ZZH700213,3,35,CBC Computer Systems Ltd,270000,Information Communication Technology  ,Information and Communications Technology,Services to People,SF Senior Management,"58,680.00",402001,11486
02/12/2021,ZZH700213,4,35,CBC Computer Systems Ltd,270000,Information Communication Technology  ,Information and Communications Technology,Services to People,SF Senior Management,"4,080.00",402001,11486
02/12/2021,ZZH700218,1,8549,Lucy Zodion Ltd,390000,"Works - Construction, Repair & Maintenance  ",Capital Expenditure - Works,#N/A,#N/A,"38,750.00",200304,C.01197.203
03/12/2021,ZZH700258,1,7517,Capita Business Services Ltd.,#N/A,#N/A,#N/A,Services to Place,Planning,"6,000.00",100999,12150
03/12/2021,ZZH700259,1,7517,Capita Business Services Ltd.,150000,Consultancy   ,Professional Fees,Services to Place,Planning,"28,000.00",401007,12150
03/12/2021,ZZH700260,1,7517,Capita Business Services Ltd.,#N/A,#N/A,#N/A,Services to Place,Planning,"20,000.00",100999,12150
06/12/2021,ZZH700285,1,6748,GEORGE COX & SONS LTD,391200,"Works - Construction, Repair & Maintenance Engineering ",Professional Fees,Services to Place,Play,"171,744.55",401032,11267
06/12/2021,ZZH700286,1,3529,Totally Local Company Ltd,182000,Environmental Services Waste Management ,Waste Management,Services to Place,Refuse Disposal,"250,000.00",201804,10878
06/12/2021,ZZH700294,1,433,Mott MacDonald Ltd,150000,Consultancy   ,Professional Fees,Services to Place,Transport Strategy,"62,208.00",401020,13060
06/12/2021,ZZH700297,1,14669,Sapphire Utility Solutions Ltd,390000,"Works - Construction, Repair & Maintenance  ",Capital Expenditure - Works,#N/A,#N/A,"11,867.70",200304,C.10523.193
06/12/2021,ZZH700301,1,7183,BLACKBURN WITH DARWEN,999999,Third party payments - Public Sector,Third party payments - Public Sector,Services to People,Regional Imp Allianc,"42,075.00",500303,13031
06/12/2021,ZZH700303,1,6702,Cheshire West and Chester Coun,999999,Third party payments - Public Sector,Third party payments - Public Sector,Services to People,Regional Imp Allianc,"190,453.00",500303,13031
06/12/2021,ZZH700310,1,14894,Planit-IE Ltd,150000,Consultancy   ,Professional Fees,Services to Place,Local Plan Project,"13,200.00",401007,12936
06/12/2021,ZZH700311,1,7025,CBRE Limited,150000,Consultancy   ,Professional Fees,Services to Place,Local Plan Project,"19,200.00",401007,12936
06/12/2021,ZZH700313,1,3529,Totally Local Company Ltd,390000,"Works - Construction, Repair & Maintenance  ",Capital Expenditure - Works,#N/A,#N/A,"38,586.72",200304,C.01284.203
06/12/2021,ZZH700316,1,7025,CBRE Limited,150000,Consultancy   ,Professional Fees,Services to Place,Merseyway Shop Ctre,"19,250.00",401020,12866
07/12/2021,ZZH700323,1,82,Marwood Electrical Company Ltd,390000,"Works - Construction, Repair & Maintenance  ",Capital Expenditure - Works,#N/A,#N/A,"14,268.45",200304,C.01199.203
07/12/2021,ZZH700325,1,1978,Lancashire County Council,999999,Third party payments - Public Sector,Third party payments - Public Sector,Services to People,Regional Imp Allianc,"40,960.00",500303,13031
07/12/2021,ZZH700326,1,7472,Oldham Council,999999,Third party payments - Public Sector,Third party payments - Public Sector,Services to People,Regional Imp Allianc,"60,377.00",500303,13031
07/12/2021,ZZH700327,1,2109,Rochdale MBC,999999,Third party payments - Public Sector,Third party payments - Public Sector,Services to People,Regional Imp Allianc,"108,256.00",500303,13031
07/12/2021,ZZH700329,1,3771,Warrington MBC,999999,Third party payments - Public Sector,Third party payments - Public Sector,Services to People,Regional Imp Allianc,"277,362.00",500303,13031
07/12/2021,ZZH700330,1,9159,TRAFFORD MBC,999999,Third party payments - Public Sector,Third party payments - Public Sector,Services to People,Regional Imp Allianc,"31,985.00",500303,13031
07/12/2021,ZZH700331,1,5183,HERTFORDSHIRE COUNTY,999999,Third party payments - Public Sector,Third party payments - Public Sector,Services to People,Regional Imp Allianc,"84,600.00",500303,13031
07/12/2021,ZZH700332,1,7111,KNOWSLEY COUNCIL,999999,Third party payments - Public Sector,Third party payments - Public Sector,Services to People,Regional Imp Allianc,"44,250.00",500303,13031
07/12/2021,ZZH700334,1,3881,North Yorkshire County Coun,999999,Third party payments - Public Sector,Third party payments - Public Sector,Services to People,Regional Imp Allianc,"75,000.00",500303,13031
07/12/2021,ZZH700335,1,13223,A Pacini Ltd,261400,Human Resources Temporary & Agency Staff ,Agency Staff,Services to Place,Property Client Acct,"5,338.40",100290,12328
07/12/2021,ZZH700351,1,3707,Salford City Council/Finance,999999,Third party payments - Public Sector,Third party payments - Public Sector,Services to Place,Air Group,"10,000.00",500303,10920
07/12/2021,ZZH700362,1,12806,District Valuation Service,150000,Consultancy   ,Professional Fees,Services to Place,Planning,"10,000.00",401007,12150
07/12/2021,ZZH700363,1,7025,CBRE Limited,150000,Consultancy   ,Professional Fees,Services to Place,Planning,"8,000.00",401007,12150
07/12/2021,ZZH700369,1,13860,Howard Lynn Property Ltd,261400,Human Resources Temporary & Agency Staff ,Agency Staff,Services to Place,Property Client Acct,"6,930.00",100290,12328
07/12/2021,ZZH700371,1,7915,Seddon Construction Ltd,390000,"Works - Construction, Repair & Maintenance  ",Repairs and Maintenance,#N/A,#N/A,"224,340.38",200123,C.11516.015
08/12/2021,ZZH700413,1,8806,Manchester City Council Int,999999,Third party payments - Public Sector,Third party payments - Public Sector,Services to People,Regional Imp Allianc,"47,372.00",500303,13031
08/12/2021,ZZH700414,1,837,Bolton MBC Corporate Resources,999999,Third party payments - Public Sector,Third party payments - Public Sector,Services to People,Regional Imp Allianc,"170,494.00",500303,13031
08/12/2021,ZZH700415,1,7216,Blackpool Council.,999999,Third party payments - Public Sector,Third party payments - Public Sector,Services to People,Regional Imp Allianc,"39,108.00",500303,13031
08/12/2021,ZZH700416,1,7167,Cheshire East Borough Council.,999999,Third party payments - Public Sector,Third party payments - Public Sector,Services to People,Regional Imp Allianc,"20,730.00",500303,13031
08/12/2021,ZZH700418,1,2356,Clancy Consulting Ltd,390000,"Works - Construction, Repair & Maintenance  ",Repairs and Maintenance,#N/A,#N/A,"1,534,955.00",200123,C.10335.118
08/12/2021,ZZH700425,1,11466,High Peak School Ltd,261500,Human Resources Training & Conferences ,Fees and Charges,Services to People,SEN Independent Sch,"21,000.00",401024,10372
08/12/2021,ZZH700428,1,11466,High Peak School Ltd,261500,Human Resources Training & Conferences ,Fees and Charges,Services to People,SEN Independent Sch,"46,816.00",401024,10372
08/12/2021,ZZH700443,1,2438,J Greenwood (Builders) Ltd,390000,"Works - Construction, Repair & Maintenance  ",Repairs and Maintenance,#N/A,#N/A,"1,534,955.00",200123,C.10335.118
09/12/2021,ZZH700479,1,597,Bury Metro,999999,Third party payments - Public Sector,Third party payments - Public Sector,Services to People,Regional Imp Allianc,"21,569.00",500303,13031
09/12/2021,ZZH700480,1,14919,East Sussex County Council,999999,Third party payments - Public Sector,Third party payments - Public Sector,Services to People,Regional Imp Allianc,"10,000.00",500303,13031
09/12/2021,ZZH700490,1,9973,Truline Construction & Interio,390000,"Works - Construction, Repair & Maintenance  ",Repairs and Maintenance,#N/A,#N/A,"51,850.00",200123,C.10545.193
09/12/2021,ZZH700502,1,3529,Totally Local Company Ltd,390000,Supplies and services,Supplies and services,#N/A,#N/A,"22,368.35",401600,C.01319.203
13/12/2021,ZZH700615,1,9149,Public-i,#N/A,#N/A,#N/A,Corporate and Support Services,Members Services,"23,533.20",400999,11111
13/12/2021,ZZH700628,1,14574,2 CQR Ltd,390000,"Works - Construction, Repair & Maintenance  ",Repairs and Maintenance,Corporate and Support Services,Public Libraries Gen,"11,500.00",200123,11329
13/12/2021,ZZH700628,2,14574,2 CQR Ltd,390000,"Works - Construction, Repair & Maintenance  ",Repairs and Maintenance,Corporate and Support Services,Public Libraries Gen,"11,500.00",200123,11329
13/12/2021,ZZH700628,3,14574,2 CQR Ltd,390000,"Works - Construction, Repair & Maintenance  ",Repairs and Maintenance,Corporate and Support Services,Public Libraries Gen,"11,500.00",200123,11329
13/12/2021,ZZH700637,1,14725,Abbey Hey Primary Academy,170000,Education  ,Third party payments - Public Sector,Services to People,OLA pupils,"7,813.98",500304,10371
14/12/2021,ZZH700653,1,5701,Liverpool City Council,999999,Third party payments - Public Sector,Third party payments - Public Sector,Services to People,Regional Imp Allianc,"47,495.00",500303,13031
14/12/2021,ZZH700660,1,1618,Romiley Life Centre Ltd,190000,Facilities & Management Services  ,Office Expenses,Services to People,SEN Incl - Psycholog,"5,273.95",400705,10751
14/12/2021,ZZH700696,1,14912,Media Displays,#N/A,#N/A,#N/A,Services to Place,Investing in Growth,"7,200.00",400999,10102
14/12/2021,ZZH700706,1,10161,Mark Hancock Ltd,150000,Consultancy   ,Professional Fees,Services to People,SEN Incl - Psycholog,"6,750.00",401007,10751
14/12/2021,ZZH700710,1,6748,GEORGE COX & SONS LTD,390000,Supplies and services,Supplies and services,#N/A,#N/A,"357,979.76",401600,C.01319.203
15/12/2021,ZZH700743,1,1722,The Together Trust Centre,261500,Human Resources Training & Conferences ,Fees and Charges,Services to People,SEN Independent Sch,"13,838.34",401024,10372
15/12/2021,ZZH700755,1,7889,Thomas Kershaw Builders,390000,"Works - Construction, Repair & Maintenance  ",Repairs and Maintenance,#N/A,#N/A,"79,364.00",200123,C.11506
15/12/2021,ZZH700762,1,7817,A Bee Electrical Ltd,390000,"Works - Construction, Repair & Maintenance  ",Repairs and Maintenance,#N/A,#N/A,"229,491.64",200123,C.11516.013
16/12/2021,ZZH700799,1,12684,Looking Local,270000,Information Communication Technology  ,Information and Communications Technology,Corporate and Support Services,I.T Business Relat,"23,078.00",402001,13044
16/12/2021,ZZH700800,1,10499,Gravitas Recruitment Group Lim,150000,Consultancy   ,Professional Fees,Corporate and Support Services,Business Intelligenc,"5,642.28",401007,11872
16/12/2021,ZZH700810,1,14933,Overbury PLC,390000,"Works - Construction, Repair & Maintenance  ",Repairs and Maintenance,#N/A,#N/A,"116,678.64",200123,C.11515
16/12/2021,ZZH700821,1,1799,Stockport Homes,#N/A,#N/A,#N/A,Services to People,COVID Winter Grant,"76,167.30",500999,13096
16/12/2021,ZZH700847,1,1339,Stockport NHS Foundation Trust,999999,UNCLASSIFIED  ,MISCLASSIFIED? CHECK BEFORE PUBLICATION,Services to People,HTV SFW School Aged,"5,829.58",100100,12876
17/12/2021,ZZH700881,1,13890,Elaine Cross Psychology Ltd,260000,Human Resources  ,Staff Training,Services to People,FP - Fostering Staff,"5,600.00",102020,11489
17/12/2021,ZZH700881,2,13890,Elaine Cross Psychology Ltd,260000,Human Resources  ,Staff Training,Services to People,FP - Fostering Staff,600.00,102020,11489
17/12/2021,ZZH700886,1,6967,Wilde Consultants Ltd,150000,Consultancy   ,Professional Fees,Services to Place,Highway Structs R+R,"42,721.00",401007,11975
17/12/2021,ZZH700887,1,9031,RSK Environment Ltd,390000,Supplies and services,Supplies and services,#N/A,#N/A,"5,000.00",401600,C.00845.203
17/12/2021,ZZH700890,1,11715,CBRE,150000,Consultancy   ,Professional Fees,Services to Place,Town deal Cheadle,"10,000.00",401020,13057
20/12/2021,ZZH700894,1,8010,GROUNDWORK & LEISURE SERVIC,240000,Horticultural  ,Grounds Maintenance,#N/A,#N/A,"17,333.00",202032,C.10775
20/12/2021,ZZH700898,1,1222,Horticon Ltd,240000,Horticultural  ,Grounds Maintenance,#N/A,#N/A,"24,895.00",202032,C.10775
20/12/2021,ZZH700899,1,780,J A Jones + Sons,240000,Horticultural  ,Grounds Maintenance,#N/A,#N/A,96.00,202034,C.10775
20/12/2021,ZZH700899,2,780,J A Jones + Sons,240000,Horticultural  ,Grounds Maintenance,#N/A,#N/A,162.00,202034,C.10775
20/12/2021,ZZH700899,3,780,J A Jones + Sons,240000,Horticultural  ,Grounds Maintenance,#N/A,#N/A,"1,330.00",202034,C.10775
20/12/2021,ZZH700899,4,780,J A Jones + Sons,240000,Horticultural  ,Grounds Maintenance,#N/A,#N/A,"1,488.00",202034,C.10775
20/12/2021,ZZH700899,5,780,J A Jones + Sons,240000,Horticultural  ,Grounds Maintenance,#N/A,#N/A,324.00,202034,C.10775
20/12/2021,ZZH700899,6,780,J A Jones + Sons,240000,Horticultural  ,Grounds Maintenance,#N/A,#N/A,48.00,202034,C.10775
20/12/2021,ZZH700899,7,780,J A Jones + Sons,240000,Horticultural  ,Grounds Maintenance,#N/A,#N/A,"1,872.00",202034,C.10775
20/12/2021,ZZH700899,8,780,J A Jones + Sons,240000,Horticultural  ,Grounds Maintenance,#N/A,#N/A,270.00,202034,C.10775
20/12/2021,ZZH700899,9,780,J A Jones + Sons,240000,Horticultural  ,Grounds Maintenance,#N/A,#N/A,52.00,202034,C.10775
20/12/2021,ZZH700899,10,780,J A Jones + Sons,240000,Horticultural  ,Grounds Maintenance,#N/A,#N/A,"1,248.00",202034,C.10775
20/12/2021,ZZH700899,11,780,J A Jones + Sons,240000,Horticultural  ,Grounds Maintenance,#N/A,#N/A,"1,274.00",202034,C.10775
20/12/2021,ZZH700899,12,780,J A Jones + Sons,240000,Horticultural  ,Grounds Maintenance,#N/A,#N/A,"1,196.00",202034,C.10775
20/12/2021,ZZH700899,13,780,J A Jones + Sons,240000,Horticultural  ,Grounds Maintenance,#N/A,#N/A,65.00,202034,C.10775
20/12/2021,ZZH700899,14,780,J A Jones + Sons,240000,Horticultural  ,Grounds Maintenance,#N/A,#N/A,"1,188.00",202034,C.10775
20/12/2021,ZZH700899,15,780,J A Jones + Sons,240000,Horticultural  ,Grounds Maintenance,#N/A,#N/A,735.00,202034,C.10775
20/12/2021,ZZH700899,16,780,J A Jones + Sons,240000,Horticultural  ,Grounds Maintenance,#N/A,#N/A,65.00,202034,C.10775
20/12/2021,ZZH700933,1,5032,CUMBRIA COUNTY COUNCIL,999999,Third party payments - Public Sector,Third party payments - Public Sector,Services to People,Regional Imp Allianc,"78,752.00",500303,13031
20/12/2021,ZZH700938,1,8234,LEX AUTOLEASE LTD,381600,Vehicle Management Hire/Leasing ,Leasing /Transport Hire,Corporate and Support Services,Democratic Services,"7,495.32",300301,11100
20/12/2021,ZZH700944,1,757,Transport for Greater Manchest,390000,Supplies and services,Supplies and services,#N/A,#N/A,"6,900.50",401600,C.00718.203
20/12/2021,ZZH700945,1,6967,Wilde Consultants Ltd,150000,Consultancy   ,Professional Fees,Services to Place,Highway Structs R+R,"24,487.00",401007,11975
20/12/2021,ZZH700946,1,6967,Wilde Consultants Ltd,150000,Consultancy   ,Professional Fees,Services to Place,Highway Structs R+R,"22,993.00",401007,11975
20/12/2021,ZZH700950,1,6748,GEORGE COX & SONS LTD,390000,Supplies and services,Supplies and services,#N/A,#N/A,"9,068.04",401600,C.01439.203
20/12/2021,ZZH700952,1,3529,Totally Local Company Ltd,390000,"Works - Construction, Repair & Maintenance  ",Capital Expenditure - Works,#N/A,#N/A,"5,461.73",200304,C.01392.203
20/12/2021,ZZH700961,1,9309,Muse Developments Ltd,150000,Consultancy   ,Professional Fees,#N/A,#N/A,"72,337.17",401020,C.10962
20/12/2021,ZZH700962,1,11715,CBRE,150000,Consultancy   ,Professional Fees,Services to Place,Merseyway Shop Ctre,"26,250.00",401020,12866
20/12/2021,ZZH700962,2,11715,CBRE,150000,Consultancy   ,Professional Fees,Services to Place,Merseyway Shop Ctre,"6,360.00",401020,12866
20/12/2021,ZZH700962,3,11715,CBRE,150000,Consultancy   ,Professional Fees,Services to Place,Merseyway Shop Ctre,"6,360.00",401020,12866
20/12/2021,ZZH700962,4,11715,CBRE,150000,Consultancy   ,Professional Fees,Services to Place,Merseyway Shop Ctre,"6,360.00",401020,12866
20/12/2021,ZZH700962,5,11715,CBRE,150000,Consultancy   ,Professional Fees,Services to Place,Merseyway Shop Ctre,"37,740.00",401020,12866
20/12/2021,ZZH700962,6,11715,CBRE,150000,Consultancy   ,Professional Fees,Services to Place,Merseyway Shop Ctre,"39,270.00",401020,12866
21/12/2021,ZZH701004,1,14098,Rider Levett Bucknall UK Limit,390000,"Works - Construction, Repair & Maintenance  ",Repairs and Maintenance,#N/A,#N/A,"15,328.50",200123,C.10393.109
21/12/2021,ZZH701005,1,14098,Rider Levett Bucknall UK Limit,390000,"Works - Construction, Repair & Maintenance  ",Repairs and Maintenance,#N/A,#N/A,"13,740.50",200123,C.10373.109
21/12/2021,ZZH701006,1,14098,Rider Levett Bucknall UK Limit,390000,"Works - Construction, Repair & Maintenance  ",Repairs and Maintenance,#N/A,#N/A,"8,255.60",200123,C.10307.107
21/12/2021,ZZH701007,1,14098,Rider Levett Bucknall UK Limit,390000,"Works - Construction, Repair & Maintenance  ",Repairs and Maintenance,#N/A,#N/A,"16,857.50",200123,C.10293.194
21/12/2021,ZZH701008,1,14098,Rider Levett Bucknall UK Limit,390000,"Works - Construction, Repair & Maintenance  ",Repairs and Maintenance,#N/A,#N/A,"16,857.50",200123,C.10304.109
22/12/2021,ZZH701066,1,14872,Just PR & Marketing Ltd,261400,Human Resources Temporary & Agency Staff ,Agency Staff,Services to Place,Town Centre Devt Tea,"8,580.00",100290,10072
22/12/2021,ZZH701067,1,6748,GEORGE COX & SONS LTD,210000,Furniture & Soft Furnishings  ,Furniture and Equipment,#N/A,#N/A,"100,115.77",400115,C.01436.203
22/12/2021,ZZH701069,1,7025,CBRE Limited,150000,Consultancy   ,Professional Fees,Services to Place,Merseyway Shop Ctre,"20,000.00",401020,12866
22/12/2021,ZZH701070,1,7025,CBRE Limited,150000,Consultancy   ,Professional Fees,Services to Place,Grand Central IE,"6,000.00",401020,12598
22/12/2021,ZZH701077,1,3763,IDOX Software Ltd,270000,Information Communication Technology  ,Information and Communications Technology,Services to People,EY Contingency,"14,855.00",402001,12231
22/12/2021,ZZH701082,1,683,AECOM Limited,150000,Consultancy   ,Professional Fees,#N/A,#N/A,"72,078.00",401007,C.00717.201
23/12/2021,ZZH701090,1,82,Marwood Electrical Company Ltd,390000,"Works - Construction, Repair & Maintenance  ",Capital Expenditure - Works,#N/A,#N/A,"61,425.54",200304,C.01197.203
23/12/2021,ZZH701090,2,82,Marwood Electrical Company Ltd,390000,"Works - Construction, Repair & Maintenance  ",Capital Expenditure - Works,#N/A,#N/A,"3,117.62",200304,C.01197.203
23/12/2021,ZZH701090,3,82,Marwood Electrical Company Ltd,390000,"Works - Construction, Repair & Maintenance  ",Capital Expenditure - Works,#N/A,#N/A,"85,608.16",200304,C.01197.203
23/12/2021,ZZH701090,4,82,Marwood Electrical Company Ltd,390000,"Works - Construction, Repair & Maintenance  ",Capital Expenditure - Works,#N/A,#N/A,"7,330.62",200304,C.01197.203
23/12/2021,ZZH701090,5,82,Marwood Electrical Company Ltd,390000,"Works - Construction, Repair & Maintenance  ",Capital Expenditure - Works,#N/A,#N/A,"42,523.20",200304,C.01197.203
23/12/2021,ZZH701090,6,82,Marwood Electrical Company Ltd,390000,"Works - Construction, Repair & Maintenance  ",Capital Expenditure - Works,#N/A,#N/A,"1,417.44",200304,C.01197.203
23/12/2021,ZZH701090,7,82,Marwood Electrical Company Ltd,390000,"Works - Construction, Repair & Maintenance  ",Capital Expenditure - Works,#N/A,#N/A,"16,266.42",200304,C.01197.203
23/12/2021,ZZH701090,8,82,Marwood Electrical Company Ltd,390000,"Works - Construction, Repair & Maintenance  ",Capital Expenditure - Works,#N/A,#N/A,"2,510.25",200304,C.01197.203
23/12/2021,ZZH701090,9,82,Marwood Electrical Company Ltd,390000,"Works - Construction, Repair & Maintenance  ",Capital Expenditure - Works,#N/A,#N/A,"32,432.43",200304,C.01197.203
23/12/2021,ZZH701090,10,82,Marwood Electrical Company Ltd,390000,"Works - Construction, Repair & Maintenance  ",Capital Expenditure - Works,#N/A,#N/A,"1,405.74",200304,C.01197.203
23/12/2021,ZZH701090,11,82,Marwood Electrical Company Ltd,390000,"Works - Construction, Repair & Maintenance  ",Capital Expenditure - Works,#N/A,#N/A,"24,936.45",200304,C.01197.203
23/12/2021,ZZH701090,12,82,Marwood Electrical Company Ltd,390000,"Works - Construction, Repair & Maintenance  ",Capital Expenditure - Works,#N/A,#N/A,"1,466.85",200304,C.01197.203
23/12/2021,ZZH701090,13,82,Marwood Electrical Company Ltd,390000,"Works - Construction, Repair & Maintenance  ",Capital Expenditure - Works,#N/A,#N/A,"3,867.15",200304,C.01197.203
23/12/2021,ZZH701090,14,82,Marwood Electrical Company Ltd,390000,"Works - Construction, Repair & Maintenance  ",Capital Expenditure - Works,#N/A,#N/A,"3,742.20",200304,C.01197.203
23/12/2021,ZZH701090,15,82,Marwood Electrical Company Ltd,390000,"Works - Construction, Repair & Maintenance  ",Capital Expenditure - Works,#N/A,#N/A,"1,020.60",200304,C.01197.203
23/12/2021,ZZH701109,1,4272,Civica UK Ltd,270000,Information Communication Technology  ,Information and Communications Technology,Corporate and Support Services,Legal Services,"41,338.12",402001,11117
23/12/2021,ZZH701112,1,2927,XMA Ltd,181800,Environmental Services Technical Equipment ,Furniture and Equipment,Services to People,AOM costs,"3,650.00",400110,11878
23/12/2021,ZZH701112,2,2927,XMA Ltd,181800,Environmental Services Technical Equipment ,Furniture and Equipment,Services to People,AOM costs,160.00,400110,11878
23/12/2021,ZZH701112,3,2927,XMA Ltd,181800,Environmental Services Technical Equipment ,Furniture and Equipment,Services to People,AOM costs,248.40,400110,11878
23/12/2021,ZZH701112,4,2927,XMA Ltd,181800,Environmental Services Technical Equipment ,Furniture and Equipment,Services to People,AOM costs,91.80,400110,11878
23/12/2021,ZZH701112,5,2927,XMA Ltd,181800,Environmental Services Technical Equipment ,Furniture and Equipment,Services to People,AOM costs,"3,410.00",400110,11878
23/12/2021,ZZH701112,6,2927,XMA Ltd,181800,Environmental Services Technical Equipment ,Furniture and Equipment,Services to People,AOM costs,"6,150.00",400110,11878
23/12/2021,ZZH701124,1,82,Marwood Electrical Company Ltd,390000,"Works - Construction, Repair & Maintenance  ",Capital Expenditure - Works,#N/A,#N/A,"7,544.70",200304,C.01199.203
24/12/2021,ZZH701142,1,7303,Osprey Healthcare,181800,Environmental Services Technical Equipment ,Furniture and Equipment,Services to People,DP - CEAS,"5,106.00",400110,12189
24/12/2021,ZZH701142,2,7303,Osprey Healthcare,181800,Environmental Services Technical Equipment ,Furniture and Equipment,Services to People,DP - CEAS,232.00,400110,12189
24/12/2021,ZZH701142,3,7303,Osprey Healthcare,181800,Environmental Services Technical Equipment ,Furniture and Equipment,Services to People,DP - CEAS,137.00,400110,12189
24/12/2021,ZZH701146,1,11660,Signis Limited,200000,Financial Services  ,Fees and Charges,Services to People,Dir-Directorate,"8,600.00",402401,10737
29/12/2021,ZZH701154,1,4240,Halton Borough Council,999999,Third party payments - Public Sector,Third party payments - Public Sector,Services to People,Regional Imp Allianc,"40,480.00",500303,13031
29/12/2021,ZZH701155,1,7572,Wigan Council...,999999,Third party payments - Public Sector,Third party payments - Public Sector,Services to People,Regional Imp Allianc,"40,943.00",500303,13031
29/12/2021,ZZH701156,1,14943,Wirral Borough Council,999999,Third party payments - Public Sector,Third party payments - Public Sector,Services to People,Regional Imp Allianc,"34,611.00",500303,13031
11/10/2021,ZZP698023,1,14317,Ridge and Partners LLP,391114,"Works - Construction, Repair & Maintenance Buildings Surveys",Capital Expenditure - Fees,#N/A,#N/A,"6,695.50",200316,C.11502.136
03/11/2021,ZZP698963,1,14583,Northern Makers LTD,181800,Environmental Services Technical Equipment ,Furniture and Equipment,Services to Place,Hatworks,"2,465.00",400110,11342
03/11/2021,ZZP698963,2,14583,Northern Makers LTD,181800,Environmental Services Technical Equipment ,Furniture and Equipment,Services to Place,Hatworks,"2,695.00",400110,11342
03/11/2021,ZZP698963,3,14583,Northern Makers LTD,181800,Environmental Services Technical Equipment ,Furniture and Equipment,Services to Place,Hatworks,"3,800.00",400110,11342
03/11/2021,ZZP698963,4,14583,Northern Makers LTD,181800,Environmental Services Technical Equipment ,Furniture and Equipment,Services to Place,Hatworks,580.00,400110,11342
03/11/2021,ZZP698963,5,14583,Northern Makers LTD,181800,Environmental Services Technical Equipment ,Furniture and Equipment,Services to Place,Hatworks,"1,250.00",400110,11342
05/11/2021,ZZP699073,1,2295,P McGuinness and Co Ltd,181000,Environmental Services Demolition & Asbestos Removal ,Capital Expenditure - Works,#N/A,#N/A,"10,048.07",200308,C.11502.136
17/12/2021,ZZP700861,1,4708,The Dodd Group,390000,"Works - Construction, Repair & Maintenance  ",Repairs and Maintenance,Corporate and Support Services,Public Libraries Gen,"6,405.23",200123,11329
17/12/2021,ZZP700862,1,4708,The Dodd Group,390000,"Works - Construction, Repair & Maintenance  ",Repairs and Maintenance,Corporate and Support Services,Public Libraries Gen,"7,221.43",200123,11329
17/12/2021,ZZP700863,1,4708,The Dodd Group,390000,"Works - Construction, Repair & Maintenance  ",Repairs and Maintenance,Corporate and Support Services,Public Libraries Gen,"7,527.67",200123,11329
